Workbook

Sheet PLANILH ORÇAMENTÁRIA
D1: MINITÉRIO DA INTEGRAÇÃO E DESENVOLVIMENTO REGIONAL | J1: BDI serviç
D2: COMPANHIA DE DESENVOLVIMENTO DOS VALES DO SÃO FRANCISCO E DO PARNAÍBA | J2: BDI fornec.
D3: 1° SUPERINTENDÊNCIA REGIONAL
A4: NOVO GALPÃO 1ª SR
A5: Local: | B5: Montes Claros - MG | H5: BDI Serviços: | I5: =BDI_SERV!B33 -> 0.229 | J5: =(BDI_SERV!B33)+1 -> 1.229
A6: Data: | B6: 2023-11-22 | H6: BDI Materiais: | I6: =BDI_MAT!B32 -> 0.153 | J6: =(BDI_MAT!B32)+1 -> 1.153
A7: Bases: | B7: SINAPI - 09/2023 | SICRO - 07/2023 | COPASA - 10/2023 | SETOP - 08/2023
A8: ITEM | B8: BASE | C8: CÓDIGO | D8: DESCRIÇÃO | E8: UNID. | F8: QUANT. | G8: UNIT. (SEM BDI) | H8: UNIT. (COM BDI) | I8: TOTAL (R$)
A9: TOTAL | I9: =SUM(I10,I15) -> 903944.92
A10: 1 | D10: ITENS DE RATEIO | I10: =SUM(I11:I14) -> 130866.47
A11: 1.1 | B11: CPU | C11: =CPU!H9 -> CPU001 | D11: =CPU!A11 -> ADMINISTRAÇÃO LOCAL | E11: GB | F11: 1 | G11: =(J11) -> 96805.0377 | H11: =(J11*J$5) -> 118973.3913 | I11: =ROUND(F11*H11,2) -> 118973.39 | J11: =CPU!H29 -> 96805.0377
A12: 1.2 | B12: CPU | C12: =CPU!H31 -> CPU002 | D12: =CPU!A33 -> MOBILIZAÇÃO E DESMOBILIZAÇÃO | E12: GB | F12: 1 | G12: =(J12) -> 3213.48 | H12: =(J12*J$5) -> 3949.36692 | I12: =ROUND(F12*H12,2) -> 3949.37 | J12: =CPU!H43 -> 3213.48
A13: 1.3 | B13: SINAPI | C13: 103689 | D13: FORNECIMENTO E INSTALAÇÃO DE PLACA DE OBRA COM CHAPA GALVANIZADA E ESTRUTURA DE MADEIRA. | E13: M2 | F13: 6 | G13: =(J13) -> 307.73 | H13: 378.20017 | I13: =ROUND(F13*H13,2) -> 2269.2 | J13: 307.73
A14: 1.4 | B14: SINAPI | C14: 10776 | D14: LOCACAO DE CONTAINER 2,30 X 6,00 M, ALT. 2,50 M, PARA ESCRITORIO, SEM DIVISORIAS INTERNAS E SEM SANITARIO (NAO INCLUI MOBILIZACAO/DESMOBILIZACAO) | E14: MÊS | F14: 6 | G14: =(J14) -> 769.53 | H14: 945.75237 | I14: =ROUND(F14*H14,2) -> 5674.51 | J14: 769.53
A15: 2 | D15: NOVO GALPÃO | I15: =SUM(I16,I25,I32,I53,I86,I66,I74,I58,I69,I41,I78) -> 773078.45
A16: 2.1 | D16: SERVIÇOS PRELIMINARES | I16: =SUM(I17:I24) -> 21853.65
A17: 2.1.1 | B17: SINAPI | C17: 99059 | D17: LOCACAO CONVENCIONAL DE OBRA, UTILIZANDO GABARITO DE TÁBUAS CORRIDAS PONTALETADAS A CADA 2,00M | E17: M | F17: 50 | G17: =(J17) -> 65.42 | H17: =(J17*J$5) -> 80.40118 | I17: =ROUND(F17*H17,2) -> 4020.06 | J17: 65.42
A18: 2.1.2 | B18: SETOP | C18: ED-19754 | D18: MOBILIZAÇÃO E DESMOBILIZAÇÃO DE EQUIPAMENTO PARA ESTACA TIPO HÉLICE CONTÍNUA (CUSTO VARIÁVEL), EXCLUSIVE CUSTO FIXO DE TRANSPORTE | E18: KM | F18: 30 | G18: 25.61 | H18: 31.47469 | I18: =ROUND(F18*H18,2) -> 944.24 | J18: 25.61
A19: 2.1.3 | B19: CPU | C19: =CPU!H260 -> CPU014 | D19: DEMOLIÇÃO MECANIZADA DE PISO DE CONCRETO | E19: M2 | F19: 50 | G19: 16.292 | H19: 20.022868 | I19: =ROUND(F19*H19,2) -> 1001.14 | J19: =CPU!H275 -> 16.292
A20: 2.1.4 | B20: SINAPI | C20: 97635 | D20: REMOÇÃO DE PISO DE BLOCO INTERTRAVADO, DE FORMA MANUAL, COM EMPILHAMENTO PARA REAPROVEITAMENTO. | E20: M2 | F20: 625 | G20: 14.31 | H20: 17.58699 | I20: =ROUND(F20*H20,2) -> 10991.87 | J20: 14.31
A21: 2.1.5 | B21: SINAPI | C21: 97647 | D21: REMOÇÃO DE COBERTURA EM TELHAS, DE FIBROCIMENTO, METÁLICA E CERÂMICA, DE FORMA MANUAL, COM EMPILHAMENTO PARA REAPROVEITAMENTO. | E21: M2 | F21: =6*25*2 -> 300 | G21: 3.36 | H21: 4.12944 | I21: =ROUND(F21*H21,2) -> 1238.83 | J21: 3.36
A22: 2.1.6 | B22: SINAPI | C22: 97642 | D22: REMOÇÃO DE TRAMA METÁLICA OU DE MADEIRA PARA FORRO, DE FORMA MANUAL, COM EMPILHAMENTO PARA REAPROVEITAMENTO. | E22: M2 | F22: =6*25*2 -> 300 | G22: 2.88 | H22: 3.53952 | I22: 1061.86 | J22: 2.88
A23: 2.1.7 | B23: SINAPI | C23: 93589 | D23: TRANSPORTE COM CAMINHÃO BASCULANTE DE 10 M³, EM VIA URBANA EM REVESTIMENTO PRIMÁRIO | E23: M3XKM | F23: =40*10 -> 400 | G23: 2.67 | H23: 3.28143 | I23: =ROUND(F23*H23,2) -> 1312.57 | J23: 2.67
A24: 2.1.8 | B24: SINAPI | C24: 93593 | D24: TRANSPORTE COM CAMINHÃO BASCULANTE DE 14 M³, EM VIA URBANA PAVIMENTADA, ADICIONAL PARA DMT EXCEDENTE A 30 KM | E24: M3XKM | F24: =40*30 -> 1200 | G24: 2.67 | H24: 1.06923 | I24: =ROUND(F24*H24,2) -> 1283.08 | J24: 0.87
A25: 2.2 | D25: MOVIMENTO DE TERRA | I25: =SUM(I26:I31) -> 16165.04
A26: 2.2.1 | B26: SINAPI | C26: 101254 | D26: ESCAVAÇÃO VERTICAL PARA EDIFICAÇÃO, COM CARGA, DESCARGA E TRANSPORTE DE SOLO DE 1ª CATEGORIA, COM ESCAVADEIRA HIDRÁULICA (CAÇAMBA: 0,8 M³ / 111HP), FROTA DE 3 CAMINHÕES BASCULANTES DE 10 M³, DMT ATÉ 1 KM. | E26: M3 | F26: 50 | G26: =(J26) -> 12.9 | H26: 15.8541 | I26: =ROUND(F26*H26,2) -> 792.71 | J26: 12.9
A27: 2.2.2 | B27: SINAPI | C27: 101117 | D27: ESCAVACAO E CARGA MECÂNICA DE MATERIAL 1A CATEGORIA | E27: M3 | F27: =500*0.25+25 -> 150 | G27: 3.12 | H27: 3.83448 | I27: 575.17 | J27: 3.12
A28: 2.2.3 | B28: SINAPI | C28: 93358 | D28: ESCAVAÇÃO MANUAL DE VALA COM PROFUNDIDADE MENOR OU IGUAL A 1,30 M. | E28: M3 | F28: 50 | G28: 78.17 | H28: 96.07093 | I28: 4803.55 | J28: 78.17
A29: 2.2.4 | B29: SINAPI | C29: 96385 | D29: EXECUÇÃO E COMPACTAÇÃO DE ATERRO COM SOLO PREDOMINANTEMENTE ARGILOSO - EXCLUSIVE SOLO, ESCAVAÇÃO, CARGA E TRANSPORTE. | E29: M3 | F29: =500*0.25+25 -> 150 | G29: 11.94 | H29: 14.67426 | I29: 2201.14 | J29: 11.94
A30: 2.2.5 | B30: SINAPI | C30: 100574 | D30: ESPALHAMENTO DE MATERIAL COM TRATOR DE ESTEIRAS. | E30: M3 | F30: =500*0.25+25 -> 150 | G30: 1.47 | H30: 1.80663 | I30: 270.99 | J30: 1.47
A31: 2.2.6 | B31: SINAPI | C31: 95426 | D31: TRANSPORTE COM CAMINHÃO BASCULANTE DE 18 M³, EM VIA URBANA EM REVESTIMENTO PRIMÁRIO. | E31: M3XKM | F31: =(F26+F30)*15 -> 3000 | G31: 2.04 | H31: 2.50716 | I31: 7521.48 | J31: 2.04
A32: 2.3 | D32: FUNDAÇÕES/ ESTRUTURAS DE CONCRETO ARMADO | I32: =SUM(I33:I40) -> 219829.12
A33: 2.3.1 | B33: SICRO | C33: 407819 | D33: =UPPER("Armação em aço CA-50 - fornecimento, preparo e colocação") -> ARMAÇÃO EM AÇO CA-50 - FORNECIMENTO, PREPARO E COLOCAÇÃO | E33: KG | F33: 1500 | G33: =(J33) -> 11.73 | H33: 14.41617 | I33: =ROUND(F33*H33,2) -> 21624.26 | J33: 11.73
A34: 2.3.2 | B34: SICRO | C34: 407820 | D34: =UPPER("Armação em aço CA-60 - fornecimento, preparo e colocação") -> ARMAÇÃO EM AÇO CA-60 - FORNECIMENTO, PREPARO E COLOCAÇÃO | E34: KG | F34: 300 | G34: 12.65 | H34: 15.54685 | I34: =ROUND(F34*H34,2) -> 4664.06 | J34: 12.65
A35: 2.3.3 | B35: SICRO | C35: 3106121 | D35: =UPPER("Formas de tábuas de pinho - utilização de 3 vezes - fornecimento, instalação e retirada") -> FORMAS DE TÁBUAS DE PINHO - UTILIZAÇÃO DE 3 VEZES - FORNECIMENTO, INSTALAÇÃO E RETIRADA | E35: M2 | F35: 200 | G35: 86.29 | H35: 106.05041 | I35: 21210.08 | J35: 86.29
A36: 2.3.4 | B36: SETOP | C36: ED-49632 | D36: FORNECIMENTO DE CONCRETO ESTRUTURAL, USINADO, COM FCK 35MPA, INCLUSIVE LANÇAMENTO, ADENSAMENTO E ACABAMENTO | E36: M3 | F36: 15 | G36: 812.63 | H36: 998.72227 | I36: 14980.83 | J36: 812.63
A37: 2.3.5 | B37: SETOP | C37: ED-49630 | D37: FORNECIMENTO DE CONCRETO ESTRUTURAL, USINADO, COM FCK 25MPA, INCLUSIVE LANÇAMENTO, ADENSAMENTO E ACABAMENTO | E37: M3 | F37: 10 | G37: =(J37) -> 762.04 | H37: 936.54716 | I37: =ROUND(F37*H37,2) -> 9365.47 | J37: 762.04
A38: 2.3.6 | B38: SETOP | C38: ED-49812 | D38: LASTRO DE CONCRETO MAGRO, INCLUSIVE TRANSPORTE, LANÇAMENTO E ADENSAMENTO | E38: M3 | F38: 3 | G38: 550.01 | H38: 675.96229 | I38: 2027.89 | J38: 550.01
A39: 2.3.7 | B39: CPU | C39: =CPU!H334 -> CPU018 | D39: =CPU!A336 -> EXECUÇÃO DE PISO INDUSTRIAL DE CONCRETO ARMADO, FCK = 20 MPA, ESPESSURA DE 12,0 CM. | E39: M2 | F39: 520 | G39: =(J39) -> 143.0787562 | H39: 175.8437914 | I39: =ROUND(F39*H39,2) -> 91438.77 | J39: =CPU!H365 -> 143.0787562
A40: 2.3.8 | B40: CPU | C40: =CPU!H175 -> CPU010 | D40: =CPU!A177 -> ESTACA HÉLICE CONTÍNUA, DIÂMETRO DE 60 CM, INCLUSO CONCRETO FCK=25MPA E ARMADURA (EXCLUSIVE MOBILIZAÇÃO E DESMOBILIZAÇÃO). | E40: M | F40: 120 | G40: =(J40) -> 369.6620892 | H40: 454.3147077 | I40: =ROUND(F40*H40,2) -> 54517.76 | J40: =CPU!H203 -> 369.6620892
A41: 2.4 | D41: CONTRUÇÃO CIVIL | I41: =SUM(I42:I52) -> 110914.99
A42: 2.4.1 | B42: SINAPI | C42: 103318 | D42: ALVENARIA DE VEDAÇÃO DE BLOCOS VAZADOS DE CONCRETO DE 14X19X39 CM (ESPESSURA 14 CM) E ARGAMASSA DE ASSENTAMENTO COM PREPARO EM BETONEIRA. | E42: M2 | F42: 200 | G42: =(J42) -> 92.09 | H42: 113.17861 | I42: =ROUND(F42*H42,2) -> 22635.72 | J42: 92.09
A43: 2.4.2 | B43: SINAPI | C43: 89472 | D43: ALVENARIA DE BLOCOS DE CONCRETO ESTRUTURAL 14X19X39 CM (ESPESSURA 14 CM), FBK = 14 MPA, UTILIZANDO COLHER DE PEDREIRO. | E43: M2 | F43: 80 | G43: 108.92 | H43: 133.86268 | I43: 10709.01 | J43: 108.92
A44: 2.4.3 | B44: SINAPI | C44: 87879 | D44: CHAPISCO APLICADO EM ALVENARIAS E ESTRUTURAS DE CONCRETO INTERNAS, COM COLHER DE PEDREIRO. ARGAMASSA TRAÇO 1:3 COM PREPARO EM BETONEIRA 400L. | E44: M2 | F44: 50 | G44: 4.39 | H44: 5.39531 | I44: 269.77 | J44: 4.39
A45: 2.4.4 | B45: SETOP | C45: ED-50762 | D45: REVESTIMENTO COM ARGAMASSA EM CAMADA ÚNICA, APLICADO EM PAREDE, TRAÇO 1:3 (CIMENTO E AREIA), ESP. 20MM, APLICAÇÃO MANUAL, INCLUSIVE ARGAMASSA COM PREPARO MECANIZADO, EXCLUSIVE CHAPISCO | E45: M2 | F45: 50 | G45: 32.07 | H45: 39.41403 | I45: 1970.7 | J45: 32.07
A46: 2.4.5 | B46: CPU | C46: =CPU!H243 -> CPU013 | D46: =CPU!A245 -> APLICAÇÃO DE SELANTE, MASTIQUE ELÁSTICO, EM JUNTA DE DILATAÇÃO, DIMENSÃO 4X12 MM | E46: M | F46: 130 | G46: 26.965805 | H46: 33.14097435 | I46: 4308.33 | J46: =CPU!H258 -> 26.965805
A47: 2.4.6 | B47: COPASA | C47: 65000141 | D47: LAJE PRE-MOLDADA PARA FORRO (CARGA 100 KG/M2), ARMADA NA MENOR DIMENSAO DE ATE 3M | E47: M2 | F47: 10 | G47: 118.34 | H47: 145.43986 | I47: 1454.4 | J47: 118.34
A48: 2.4.7 | B48: SETOP | C48: ED-23035 | D48: PORTA METÁLICA VENEZIANA, TIPO DE ABRIR, COM UMA (1) FOLHA, EM PERFIL VENEZIANA ENRIJECIDO, INCLUSIVE PINTURA ANTICORROSIVA A BASE DE ÓXIDO DE FERRO (ZARCÃO), UMA (1) DEMÃO, FORNECIMENTO E ASSENTAMENTO, EXCLUSIVE FECHADURA E DOBRADIÇA | E48: M2 | F48: 2.1 | G48: 368.66 | H48: 453.08314 | I48: 951.47 | J48: 368.66
A49: 2.4.8 | B49: SINAPI | C49: 88489 | D49: PINTURA LÁTEX ACRÍLICA PREMIUM, APLICAÇÃO MANUAL EM PAREDES, DUAS DEMÃOS. | E49: M2 | F49: 3000 | G49: 11.64 | H49: 14.30556 | I49: 42916.68 | J49: 11.64
A50: 2.4.9 | B50: SINAPI | C50: 98555 | D50: IMPERMEABILIZAÇÃO DE SUPERFÍCIE COM ARGAMASSA POLIMÉRICA / MEMBRANA ACRÍLICA, 3 DEMÃOS. | E50: M2 | F50: 120 | G50: 29.18 | H50: 35.86222 | I50: 4303.47 | J50: 29.18
A51: 2.4.10 | B51: CPU | C51: =CPU!H367 -> CPU019 | D51: =CPU!A369 -> FECHAMENTO DE VÃOS LATERAIS COM VENEZIANA EM CHAPA DE AÇO GALVALUME PRÉ-PINTADA, INCLUSO IÇAMENTO. | E51: M2 | F51: 50 | G51: 307.37721 | H51: 377.7665911 | I51: 18888.33 | J51: =CPU!H387 -> 307.37721
A52: 2.4.11 | B52: CPU | C52: =CPU!H312 -> CPU017 | D52: =CPU!A314 -> FECHAMENTO DE VÃO DE FACHADA EM TELHA METÁLICA TRAPEZOIDAL, INCLUSO IÇAMENTO. | E52: M2 | F52: 40 | G52: 50.99895 | H52: 62.67770955 | I52: 2507.11 | J52: =CPU!H332 -> 50.99895
A53: 2.5 | D53: COBERTURA | I53: =SUM(I54:I57) -> 65405.38
A54: 2.5.1 | B54: SINAPI | C54: 94213 | D54: TELHAMENTO COM TELHA DE AÇO/ALUMÍNIO E = 0,5 MM, COM ATÉ 2 ÁGUAS, INCLUSO IÇAMENTO. | E54: M2 | F54: 362 | G54: =(J54) -> 61.75 | H54: 75.89075 | I54: =ROUND(F54*H54,2) -> 27472.45 | J54: 61.75
A55: 2.5.2 | B55: CPU | C55: =CPU!H290 -> CPU016 | D55: =CPU!A292 -> TELHAMENTO COM TELHA TRANSLÚCIDA DE POLICARBONATO, INCLUSO IÇAMENTO. | E55: M2 | F55: 188.4 | G55: =(J55) -> 132.71047 | H55: 163.1011676 | I55: =ROUND(F55*H55,2) -> 30728.26 | J55: =CPU!H310 -> 132.71047
A56: 2.5.3 | B56: SINAPI | C56: 94227 | D56: CALHA EM CHAPA DE AÇO GALVANIZADO NÚMERO 24, DESENVOLVIMENTO DE 33 CM, INCLUSO TRANSPORTE VERTICAL. | E56: M | F56: 64.8 | G56: =(J56) -> 67.6 | H56: 83.0804 | I56: =ROUND(F56*H56,2) -> 5383.61 | J56: 67.6
B57: SETOP | C57: ED-48402 | D57: COLOCAÇÃO DE CUMEEIRA GALVANIZADA TRAPEZOIDAL E = 0,50 MM, SIMPLES | E57: M | F57: 26 | G57: =(J57) -> 56.99 | H57: 70.04071 | I57: =ROUND(F57*H57,2) -> 1821.06 | J57: 56.99
A58: 2.6 | D58: ESTRUTURAS METÁLICAS | I58: =SUM(I59:I65) -> 207467.49
A59: 2.6.1 | B59: SINAPI | C59: 100765 | D59: PILAR METÁLICO PERFIL LAMINADO/SOLDADO EM AÇO ESTRUTURAL, COM CONEXÕES PARAFUSADAS, INCLUSOS MÃO DE OBRA, TRANSPORTE E IÇAMENTO UTILIZANDO GUINDASTE - FORNECIMENTO E INSTALAÇÃO. | E59: KG | F59: 2566.3 | G59: =(J59) -> 15.13 | H59: 18.59477 | I59: =ROUND(F59*H59,2) -> 47719.76 | J59: 15.13
A60: 2.6.2 | B60: SINAPI | C60: 100763 | D60: VIGA METÁLICA EM PERFIL LAMINADO OU SOLDADO EM AÇO ESTRUTURAL, COM CONEXÕES PARAFUSADAS, INCLUSOS MÃO DE OBRA, TRANSPORTE E IÇAMENTO UTILIZANDO GUINDASTE - FORNECIMENTO E INSTALAÇÃO. | E60: KG | F60: 2270.3 | G60: 16.13 | H60: 19.82377 | I60: 45005.91 | J60: 16.13
A61: 2.6.3 | B61: SINAPI | C61: 104314 | D61: TRAMA DE AÇO COMPOSTA POR TERÇAS PARA TELHADOS DE ATÉ 2 ÁGUAS PARA TELHA ONDULADA DE FIBROCIMENTO, METÁLICA, PLÁSTICA OU TERMOACÚSTICA, INCLUSO TRANSPORTE VERTICAL. | E61: KG | F61: 2332.8 | G61: 11.33 | H61: 13.92457 | I61: 32483.24 | J61: 11.33
A62: 2.6.4 | B62: SINAPI | C62: 100378 | D62: FABRICAÇÃO E INSTALAÇÃO DE TESOURA (INTEIRA OU MEIA) EM AÇO, VÃOS MAIORES QUE 6,0 M E MENORES QUE 12,0 M, INCLUSO IÇAMENTO. | E62: KG | F62: 4003.2 | G62: 11.13 | H62: 13.67877 | I62: 54758.85 | J62: 11.13
A63: 2.6.5 | B63: CPU | C63: =CPU!H137 -> CPU008 | D63: =CPU!A139 -> FORNECIMENTO E INSTALAÇÃO DE TIRANTE EM AÇO 10mm INCLUSO IÇAMENTO | E63: KG | F63: 293.5 | G63: 9.937924 | H63: 12.2137086 | I63: 3584.72 | J63: =CPU!H157 -> 9.937924
A64: 2.6.6 | B64: CPU | C64: =CPU!H159 -> CPU009 | D64: =CPU!A161 -> FORNECIMENTO E INSTALAÇÃO DE CHUMBADORES DE AÇO GALVANIZADO PARA FIXAÇÃO DOS PILARES | E64: UNID. | F64: 81 | G64: 113.416 | H64: 139.388264 | I64: 11290.45 | J64: =CPU!H173 -> 113.416
A65: 2.6.7 | B65: SINAPI | C65: 100770 | D65: CONTRAVENTAMENTO COM CANTONEIRAS DE AÇO, ABAS IGUAIS, COM CONEXÕES SOLDADAS, INCLUSOS MÃO DE OBRA, TRANSPORTE E IÇAMENTO UTILIZANDO GUINDASTE, PARA EDIFÍCIOS DE 3 A 5 PAVIMENTOS - FORNECIMENTO E INSTALAÇÃO. | E65: KG | F65: 478 | G65: 21.49 | H65: 26.41121 | I65: 12624.56 | J65: 21.49
A66: 2.7 | D66: PINTURAS | I66: =SUM(I67:I68) -> 46584.02
A67: 2.7.1 | B67: SINAPI | C67: 100719 | D67: PINTURA COM TINTA ALQUÍDICA DE FUNDO (TIPO ZARCÃO) PULVERIZADA SOBRE PERFIL METÁLICO EXECUTADO EM FÁBRICA (POR DEMÃO). | E67: M2 | F67: 1600 | G67: =(J67) -> 12.17 | H67: 14.95693 | I67: =ROUND(F67*H67,2) -> 23931.09 | J67: 12.17
A68: 2.7.2 | B68: SINAPI | C68: 100739 | D68: PINTURA COM TINTA ALQUÍDICA DE ACABAMENTO (ESMALTE SINTÉTICO ACETINADO) PULVERIZADA SOBRE PERFIL METÁLICO EXECUTADO EM FÁBRICA (POR DEMÃO). | E68: M2 | F68: 1600 | G68: =(J68) -> 11.52 | H68: 14.15808 | I68: =ROUND(F68*H68,2) -> 22652.93 | J68: 11.52
A69: 2.8 | D69: SERVIÇOS DIVERSOS | I69: =SUM(I70:I73) -> 43067.62
A70: 2.8.1 | B70: CPU | C70: =CPU!H110 -> CPU007 | D70: =CPU!A112 -> LASTRO COM MATERIAL GRANULAR (PEDRA BRITADA N.2), ESPESSURA DE 3 CM PARA PLATAFORMA DO LAVA-JATO | E70: M3 | F70: 10 | G70: =(J70) -> 189.97662 | H70: 233.481266 | I70: =ROUND(F70*H70,2) -> 2334.81 | J70: =CPU!H135 -> 189.97662
A71: 2.8.2 | B71: CPU | C71: =CPU!H90 -> CPU006 | D71: =CPU!A92 -> ANDAIME TIPO FACHADEIRO, INCLUSIVE ESTRADO DE MADEIRA | E71: M2 | F71: 80 | G71: =(J71) -> 95.0217 | H71: 116.7816693 | I71: =ROUND(F71*H71,2) -> 9342.53 | J71: =CPU!H108 -> 95.0217
A72: 2.8.3 | B72: SETOP | C72: ED-50985 | D72: PORTÃO EM PERFIL E CHAPA METÁLICA, EXCLUSIVE CADEADO E PINTURA | E72: M2 | F72: 44.25 | G72: =(J72) -> 533.25 | H72: 655.36425 | I72: =ROUND(F72*H72,2) -> 28999.87 | J72: 533.25
A73: 2.8.4 | B73: CPU | C73: =CPU!H277 -> CPU015 | D73: =CPU!A279 -> TRANSPORTE DE ENTULHO PARA BOTA FORA EM CAMINHÃO BASCULANTE, INCLUSO CARGA E DESCARGA | E73: M3 | F73: 100 | G73: =(J73) -> 19.45 | H73: 23.90405 | I73: =ROUND(F73*H73,2) -> 2390.41 | J73: =CPU!H288 -> 19.45
A74: 2.9 | D74: ASSENTAMENTOS | I74: =SUM(I75:I77) -> 6430.97
A75: 2.9.1 | B75: CPU | C75: =CPU!H223 -> CPU012 | D75: =CPU!A225 -> EXECUÇÃO DE INSTALAÇÕES HIDROSSANITÁRIAS, EXCLUSIVE MATERIAIS | E75: GB | F75: 1 | G75: =(J75) -> 3949.727296 | H75: 4854.214847 | I75: =ROUND(F75*H75,2) -> 4854.21 | J75: =CPU!H241 -> 3949.727296
A76: 2.9.2 | B76: CPU | C76: =CPU!H205 -> CPU011 | D76: =CPU!A207 -> SUPORTE PARA TUBO EM FITA PERFURADA DE AÇO INOXIDÁVEL 19mm, INCLUSO PARAFUSO E BUCHA DE NYLON, CONFORME ESPECIFICAÇÕES DE PROEJTO - FORNECIMENTO E INSTALAÇÃO | E76: UNID. | F76: 40 | G76: =(J76) -> 21.679 | H76: 26.643491 | I76: =ROUND(F76*H76,2) -> 1065.74 | J76: =CPU!H221 -> 21.679
A77: 2.9.3 | B77: SINAPI | C77: 100861 | D77: SUPORTE MÃO FRANCESA EM AÇO, ABAS IGUAIS 30 CM, CAPACIDADE MINIMA 60 KG, BRANCO - FORNECIMENTO E INSTALAÇÃO. | E77: UNID. | F77: 12 | G77: =(J77) -> 34.65 | H77: 42.58485 | I77: =ROUND(F77*H77,2) -> 511.02 | J77: 34.65
A78: 2.10 | D78: INSTALAÇÕES ELÉTRICAS | I78: =SUM(I79:I85) -> 10414.54
A79: 2.10,1 | B79: CPU | C79: =CPU!H77 -> CPU005 | D79: =CPU!A79 -> EXECUÇÃO DE INSTALAÇÕES ELÉTRICAS, EXCLUSIVE EQUIPAMENTOS | E79: GB | F79: 1 | G79: =(J79) -> 5798.4 | H79: 7126.2336 | I79: =ROUND(F79*H79,2) -> 7126.23 | J79: =CPU!H88 -> 5798.4
A80: 2.10,2 | B80: SETOP | C80: ED-15114 | D80: DISJUNTOR DE PROTEÇÃO DIFERENCIAL RESIDUAL (DR), BIPOLAR, TIPO DIN, CORRENTE NOMINAL DE 25A, ALTA SENSIBILIDADE, CORRENTE DIFERENCIAL RESIDUAL NOMINAL COM ATUAÇÃO DE 30MA | E80: UNID. | F80: 2 | G80: =(J80) -> 127.94 | H80: 157.23826 | I80: =ROUND(F80*H80,2) -> 314.48 | J80: 127.94
A81: 2.10,3 | B81: SETOP | C81: ED-15117 | D81: DISJUNTOR DE PROTEÇÃO DIFERENCIAL RESIDUAL (DR), TETRAPOLAR, TIPO DIN, CORRENTE NOMINAL DE 63A, ALTA SENSIBILIDADE, CORRENTE DIFERENCIAL RESIDUAL NOMINAL COM ATUAÇÃO DE 30MA | E81: UNID. | F81: 2 | G81: 164.47 | H81: 202.13363 | I81: 404.27 | J81: 164.47
A82: 2.10,4 | B82: SETOP | C82: ED-15763 | D82: CONJUNTO DE UM (1) MÓDULO COM FURO PARA SAÍDA DE FIO Ø10MM, COM PLACA 4"X2" DE UM (1) POSTO, INCLUSIVE FORNECIMENTO, INSTALAÇÃO, SUPORTE, MÓDULO E PLACA | E82: UNID. | F82: 2 | G82: 12.79 | H82: =(J82*J$5) -> 15.71891 | I82: 31.44 | J82: 12.79
A83: 2.10,5 | B83: SETOP | C83: ED-15756 | D83: CONJUNTO DE DUAS (2) TOMADAS PADRÃO, TRÊS (3) POLOS, CORRENTE 20A, TENSÃO 250V, (2P+T/20A-250V), COM PLACA 4"X2" DE DOIS (2) POSTOS, INCLUSIVE FORNECIMENTO, INSTALAÇÃO, SUPORTE, MÓDULO E PLACA | E83: UNID. | F83: 1 | G83: =(J83) -> 42.59 | H83: 52.34311 | I83: =ROUND(F83*H83,2) -> 52.34 | J83: 42.59
A84: 2.10,6 | B84: SETOP | C84: ED-49168 | D84: CAIXA DE PASSAGEM EM ALVENARIA E TAMPA DE CONCRETO, FUNDO DE BRITA, TIPO 1, 30 X 30 X 40 CM, INCLUSIVE ESCAVAÇÃO, REATERRO E BOTA-FORA | E84: UNID. | F84: 5 | G84: 167.64 | H84: 206.02956 | I84: 1030.15 | J84: 167.64
A85: 2.10,7 | B85: SETOP | C85: ED-49166 | D85: CAIXA DE PASSAGEM PARA PISO EM ALUMÍNIO, TAMPA REVERSÍVEL (ANTIDERRAPANTE OU LISA), DIMENSÃO (300X300X120)MM, INCLUSIVE ACESSÓRIOS E FIXAÇÃO | E85: UNID. | F85: 5 | G85: 236.88 | H85: 291.12552 | I85: 1455.63 | J85: 236.88
A86: 2.11 | D86: MATERIAIS | I86: =SUM(I87:I164) -> 24945.63
A87: 2.11.1 | B87: SINAPI | C87: 9837 | D87: TUBO PVC SERIE NORMAL, DN 75 MM, PARA ESGOTO PREDIAL | E87: M | F87: 24 | G87: =(J87) -> 14.96 | H87: =(J87*J$6) -> 17.24888 | I87: =ROUND(F87*H87,2) -> 413.97 | J87: 14.96
A88: 2.11.2 | B88: SINAPI | C88: 9836 | D88: TUBO PVC SERIE NORMAL, DN 100 MM, PARA ESGOTO PREDIAL (NBR 5688) | E88: M | F88: 30 | G88: 15.8 | H88: =(J88*J$6) -> 18.2174 | I88: 546.52 | J88: 15.8
A89: 2.11.3 | B89: SINAPI | C89: 20065 | D89: TUBO PVC SERIE NORMAL, DN 150 MM, PARA ESGOTO PREDIAL (NBR 5688) | E89: M | F89: 60 | G89: 41.3 | H89: =(J89*J$6) -> 47.6189 | I89: 2857.13 | J89: 41.3
A90: 2.11.4 | B90: COPASA | C90: 25002276 | D90: TUBO PVC ESG.PRIM.PB JE DN200X6M | E90: M | F90: 36 | G90: 22.48 | H90: 25.91944 | I90: 933.1 | J90: 22.48
A91: 2.11.5 | B91: SINAPI | C91: 9868 | D91: TUBO PVC, SOLDAVEL, DE 25 MM, AGUA FRIA (NBR-5648) | E91: M | F91: 12 | G91: 4.31 | H91: 4.96943 | I91: 59.63 | J91: 4.31
A92: 2.11.6 | B92: SINAPI | C92: 9869 | D92: TUBO PVC, SOLDAVEL, DE 32 MM, AGUA FRIA (NBR-5648) | E92: M | F92: 36 | G92: 9.3 | H92: 10.7229 | I92: 386.02 | J92: 9.3
A93: 2.11.7 | B93: SINAPI | C93: 97 | D93: ADAPTADOR PVC SOLDAVEL, COM FLANGE E ANEL DE VEDACAO, 32 MM X 1", PARA CAIXA D'AGUA | E93: UNID. | F93: 4 | G93: 19.24 | H93: 22.18372 | I93: 88.73 | J93: 19.24
A94: 2.11.8 | B94: SINAPI | C94: 96 | D94: ADAPTADOR PVC SOLDAVEL, COM FLANGE E ANEL DE VEDACAO, 25 MM X 3/4", PARA CAIXA D'AGUA | E94: UNID. | F94: 1 | G94: 12.79 | H94: 14.74687 | I94: 14.75 | J94: 12.79
A95: 2.11.9 | B95: SINAPI | C95: 11674 | D95: REGISTRO DE ESFERA, PVC, COM VOLANTE, VS, SOLDAVEL, DN 25 MM, COM CORPO DIVIDIDO | E95: UNID. | F95: 3 | G95: 19.13 | H95: 22.05689 | I95: 66.17 | J95: 19.13
A96: 2.11.10 | B96: SINAPI | C96: 1957 | D96: CURVA DE PVC 90 GRAUS, SOLDAVEL, 32 MM, COR MARROM, PARA AGUA FRIA PREDIAL | E96: UNID. | F96: 1 | G96: 6.7 | H96: 7.7251 | I96: 7.73 | J96: 6.7
A97: 2.11.11 | B97: SINAPI | C97: 3501 | D97: JOELHO, PVC SOLDAVEL, 45 GRAUS, 32 MM, COR MARROM, PARA AGUA FRIA PREDIAL | E97: UNID. | F97: 3 | G97: 4.3 | H97: 4.9579 | I97: 14.87 | J97: 4.3
A98: 2.11.12 | B98: SINAPI | C98: 3529 | D98: JOELHO PVC, SOLDAVEL, 90 GRAUS, 25 MM, COR MARROM, PARA AGUA FRIA PREDIAL | E98: UNID. | F98: 6 | G98: 0.75 | H98: 0.86475 | I98: 5.19 | J98: 0.75
A99: 2.11.13 | B99: SINAPI | C99: 3536 | D99: JOELHO PVC, SOLDAVEL, 90 GRAUS, 32 MM, COR MARROM, PARA AGUA FRIA PREDIAL | E99: UNID. | F99: 3 | G99: 2.51 | H99: 2.89403 | I99: 8.68 | J99: 2.51
A100: 2.11.14 | B100: SINAPI | C100: 3524 | D100: JOELHO PVC, SOLDAVEL, COM BUCHA DE LATAO, 90 GRAUS, 25 MM X 3/4", PARA AGUA FRIA PREDIAL | E100: UNID. | F100: 1 | G100: 8.36 | H100: 9.63908 | I100: 9.64 | J100: 8.36
A101: 2.11.15 | B101: SINAPI | C101: 3532 | D101: JOELHO PVC, SOLDAVEL, COM BUCHA DE LATAO, 90 GRAUS, 32 MM X 3/4", PARA AGUA FRIA PREDIAL | E101: UNID. | F101: 1 | G101: 19.33 | H101: 22.28749 | I101: 22.29 | J101: 19.33
A102: 2.11.16 | B102: SINAPI | C102: 11675 | D102: REGISTRO DE ESFERA, PVC, COM VOLANTE, VS, SOLDAVEL, DN 32 MM, COM CORPO DIVIDIDO | E102: UNID. | F102: 1 | G102: 30.38 | H102: 35.02814 | I102: 35.03 | J102: 30.38
A103: 2.11.17 | B103: SINAPI | C103: 7139 | D103: TE SOLDAVEL, PVC, 90 GRAUS, 25 MM, PARA AGUA FRIA PREDIAL (NBR 5648) | E103: UNID. | F103: 1 | G103: 1.25 | H103: 1.44125 | I103: 1.44 | J103: 1.25
A104: 2.11.18 | B104: SINAPI | C104: 34640 | D104: CAIXA D'AGUA / RESERVATORIO EM POLIETILENO, 2000 LITROS, COM TAMPA | E104: UNID. | F104: 1 | G104: 1204.27 | H104: 1388.52331 | I104: 1388.52 | J104: 1204.27
A105: 2.11.19 | B105: SINAPI | C105: 11829 | D105: TORNEIRA DE BOIA CONVENCIONAL PARA CAIXA D'AGUA, AGUA FRIA, 1/2", COM HASTE E TORNEIRA METALICOS E BALAO PLASTICO | E105: UNID. | F105: 1 | G105: 24.25 | H105: 27.96025 | I105: 27.96 | J105: 24.25
A106: 2.11.20 | B106: SINAPI | C106: 7602 | D106: TORNEIRA DE METAL AMARELO, PARA TANQUE / JARDIM, DE PAREDE, COM BICO PLASTICO, CANO CURTO, AREA EXTERNA, PADRAO POPULAR / USO GERAL, 1/2 " OU 3/4 " (REF 1128) | E106: UNID. | F106: 1 | G106: 43.49 | H106: 50.14397 | I106: 50.14 | J106: 43.49
A107: 2.11.21 | B107: COPASA | C107: 25002356 | D107: CURVA 90° RL PVC ESG.COL.PB JE DN200 | E107: UNID. | F107: 1 | G107: 120.65 | H107: 139.10945 | I107: 139.11 | J107: 120.65
A108: 2.11.22 | B108: SINAPI | C108: 3519 | D108: JOELHO PVC, SOLDAVEL, PB, 45 GRAUS, DN 75 MM, PARA ESGOTO PREDIAL | E108: UNID. | F108: 6 | G108: 8.4 | H108: 9.6852 | I108: 58.11 | J108: 8.4
A109: 2.11.23 | B109: SINAPI | C109: 3528 | D109: JOELHO PVC, SOLDAVEL, PB, 45 GRAUS, DN 100 MM, PARA ESGOTO PREDIAL | E109: UNID. | F109: 4 | G109: 9.69 | H109: 11.17257 | I109: 44.69 | J109: 9.69
A110: 2.11.24 | B110: SINAPI | C110: 37952 | D110: JOELHO PVC, SOLDAVEL, PB, 45 GRAUS, DN 150 MM, PARA ESGOTO PREDIAL | E110: UNID. | F110: 1 | G110: 69.46 | H110: 80.08738 | I110: 80.09 | J110: 69.46
A111: 2.11.25 | B111: COTAÇÃO | D111: JOELHO PVC, SOLDAVEL, PB, 45 GRAUS, DN 200 MM, PARA ESGOTO PREDIAL | E111: UNID. | F111: 1 | G111: 84.96 | H111: 97.95888 | I111: 97.96 | J111: 84.96
A112: 2.11.26 | B112: SINAPI | C112: 3509 | D112: JOELHO PVC, SOLDAVEL, PB, 90 GRAUS, DN 75 MM, PARA ESGOTO PREDIAL | E112: UNID. | F112: 2 | G112: 7.37 | H112: 8.49761 | I112: 17 | J112: 7.37
A113: 2.11.27 | B113: SINAPI | C113: 3520 | D113: JOELHO PVC, SOLDAVEL, PB, 90 GRAUS, DN 100 MM, PARA ESGOTO PREDIAL | E113: UNID. | F113: 2 | G113: 8.81 | H113: 10.15793 | I113: 20.32 | J113: 8.81
A114: 2.11.28 | B114: SINAPI | C114: 37950 | D114: JOELHO PVC, SOLDAVEL, PB, 90 GRAUS, DN 150 MM, PARA ESGOTO PREDIAL | E114: UNID. | F114: 2 | G114: 63.94 | H114: 73.72282 | I114: 147.45 | J114: 63.94
A115: 2.11.29 | B115: COTAÇÃO | D115: JOELHO PVC, SOLDAVEL, PB, 90 GRAUS, DN 200 MM, PARA ESGOTO PREDIAL | E115: UNID. | F115: 2 | G115: 141.2 | H115: 162.8036 | I115: 325.61 | J115: 141.2
A116: 2.11.30 | B116: COTAÇÃO | D116: JUNÇÃO SIMPLES EM PVC PARA ESGOTO SANITÁRIO, LINHA NORMAL DN 150 X 100 MM | E116: UNID. | F116: 4 | G116: 41.48 | H116: 47.82644 | I116: 191.31 | J116: 41.48
A117: 2.11.31 | B117: COTAÇÃO | D117: JUNÇÃO SIMPLES EM PVC PARA ESGOTO SANITÁRIO, LINHA NORMAL DN 200 X 200 MM | E117: UNID. | F117: 1 | G117: 203.12 | H117: 234.19736 | I117: 234.2 | J117: 203.12
A118: 2.11.32 | B118: SINAPI | C118: 3898 | D118: LUVA SIMPLES, PVC, SOLDAVEL, DN 75 MM, SERIE NORMAL, PARA ESGOTO PREDIAL | E118: UNID. | F118: 7 | G118: 7.11 | H118: 8.19783 | I118: 57.38 | J118: 7.11
A119: 2.11.33 | B119: SINAPI | C119: 3899 | D119: LUVA SIMPLES, PVC, SOLDAVEL, DN 100 MM, SERIE NORMAL, PARA ESGOTO PREDIAL | E119: UNID. | F119: 5 | G119: 6.95 | H119: 8.01335 | I119: 40.07 | J119: 6.95
A120: 2.11.34 | B120: SINAPI | C120: 38676 | D120: LUVA SIMPLES, PVC, SOLDAVEL, DN 150 MM, SERIE NORMAL, PARA ESGOTO PREDIAL | E120: UNID. | F120: 11 | G120: 34.77 | H120: 40.08981 | I120: 440.99 | J120: 34.77
A121: 2.11.35 | B121: COTAÇÃO | D121: LUVA SIMPLES EM PVC PARA ESGOTO SANITÁRIO, LINHA NORMAL DN 200 MM | E121: UNID. | F121: 6 | G121: 37.21 | H121: 42.90313 | I121: 257.42 | J121: 37.21
A122: 2.11.36 | B122: SINAPI | C122: 20044 | D122: REDUCAO EXCENTRICA PVC, DN 100 X 75 MM, PARA ESGOTO PREDIAL | E122: UNID. | F122: 1 | G122: 11.03 | H122: 12.71759 | I122: 12.72 | J122: 11.03
A123: 2.11.37 | B123: SINAPI | C123: 20047 | D123: REDUCAO EXCENTRICA PVC, SERIE R, DN 150 X 100 MM, PARA ESGOTO PREDIAL | E123: UNID. | F123: 2 | G123: 58.57 | H123: 67.53121 | I123: 135.06 | J123: 58.57
A124: 2.11.38 | B124: COPASA | C124: 20480202 | D124: REDUCAO EXC.PVC ESG. PRIM.PB JE DN200X150 | E124: UNID. | F124: 1 | G124: 40 | H124: 46.12 | I124: 46.12 | J124: 40
A125: 2.11.39 | B125: COTAÇÃO | D125: TÊ EM PVC PARA ESGOTO SANITÁRIO, LINHA NORMAL DN 150 X 100 MM | E125: UNID. | F125: 3 | G125: 54.16 | H125: 62.44648 | I125: 187.34 | J125: 54.16
A126: 2.11.40 | B126: COTAÇÃO | D126: TÊ EM PVC PARA ESGOTO SANITÁRIO, LINHA NORMAL DN 200 X 200 MM | E126: UNID. | F126: 1 | G126: 169.49 | H126: 195.42197 | I126: 195.42 | J126: 169.49
A127: 2.11.41 | B127: COTAÇÃO | D127: CAIXA DE AREIA COM TAMPA | E127: UNID. | F127: 5 | G127: 248.71 | H127: 286.76263 | I127: 1433.81 | J127: 248.71
A128: 2.11.42 | B128: COTAÇÃO | D128: CAIXA SEPARADORA DE ÁGUA E ÓLEO PARA 3000L/h 100MM | E128: UNID. | F128: 1 | G128: 3097 | H128: 3570.841 | I128: 3570.84 | J128: 3097
A129: 2.11.43 | B129: COTAÇÃO | D129: PROLONGADOR SEM ENTRADA PARA CAIXA DE AREIA 300MM | E129: UNID. | F129: 5 | G129: 57.05 | H129: 65.77865 | I129: 328.89 | J129: 57.05
A130: 2.11.44 | B130: COTAÇÃO | D130: RALO COLETOR LINEAR CONTÍNUO MODULAR COM GRELHA 15x50cm | E130: UNID. | F130: 6 | G130: 92.8 | H130: 106.9984 | I130: 641.99 | J130: 92.8
A131: 2.11.45 | B131: SINAPI | C131: 981 | D131: CABO DE COBRE, FLEXIVEL, CLASSE 4 OU 5, ISOLACAO EM PVC/A, ANTICHAMA BWF-B, CONDUTOR, 450/750 V, SECAO NOMINAL 4 MM2 | E131: M | F131: 350 | G131: 3.11 | H131: 3.58583 | I131: 1255.04 | J131: 3.11
A132: 2.11.46 | B132: SINAPI | C132: 980 | D132: CABO DE COBRE, FLEXIVEL, CLASSE 4 OU 5, ISOLACAO EM PVC/A, ANTICHAMA BWF-B, 1 CONDUTOR, 450/750 V, SECAO NOMINAL 10 MM2 | E132: M | F132: 285 | G132: 8.54 | H132: 9.84662 | I132: 2806.29 | J132: 8.54
A133: 2.11.47 | B133: SINAPI | C133: 1014 | D133: CABO DE COBRE, FLEXIVEL, CLASSE 4 OU 5, ISOLACAO EM PVC/A, ANTICHAMA BWF-B, 1 CONDUTOR, 450/750 V, SECAO NOMINAL 2,5 MM2 | E133: M | F133: 130 | G133: 1.87 | H133: 2.15611 | I133: 280.29 | J133: 1.87
A134: 2.11.48 | B134: SINAPI | C134: 2673 | D134: ELETRODUTO DE PVC RIGIDO ROSCAVEL DE 1/2 ", SEM LUVA | E134: M | F134: 100 | G134: 4.36 | H134: 5.02708 | I134: 502.71 | J134: 4.36
A135: 2.11.49 | B135: SINAPI | C135: 2674 | D135: ELETRODUTO DE PVC RIGIDO ROSCAVEL DE 3/4 ", SEM LUVA | E135: M | F135: 12 | G135: 5.43 | H135: 6.26079 | I135: 75.13 | J135: 5.43
A136: 2.11.50 | B136: SINAPI | C136: 39246 | D136: ELETRODUTO/DUTO PEAD FLEXIVEL PAREDE SIMPLES, CORRUGACAO HELICOIDAL, COR PRETA, SEM ROSCA, DE 1 1/2", PARA CABEAMENTO SUBTERRANEO (NBR 15715) | E136: M | F136: 12 | G136: 5.01 | H136: 5.77653 | I136: 69.32 | J136: 5.01
A137: 2.11.51 | B137: SINAPI | C137: 40400 | D137: ELETRODUTO FLEXIVEL PLANO EM PEAD, COR PRETA E LARANJA, DIAMETRO 25 MM | E137: M | F137: 50 | G137: 1.96 | H137: 2.25988 | I137: 112.99 | J137: 1.96
A138: 2.11.52 | B138: SINAPI | C138: 2688 | D138: ELETRODUTO PVC FLEXIVEL CORRUGADO, COR AMARELA, DE 25 MM | E138: M | F138: 40 | G138: 2.85 | H138: 3.28605 | I138: 131.44 | J138: 2.85
A139: 2.11.53 | B139: SINAPI | C139: 2690 | D139: ELETRODUTO PVC FLEXIVEL CORRUGADO, COR AMARELA, DE 32 MM | E139: M | F139: 3 | G139: 4.88 | H139: 5.62664 | I139: 16.88 | J139: 4.88
A140: 2.11.54 | B140: SINAPI | C140: 2689 | D140: ELETRODUTO PVC FLEXIVEL CORRUGADO, COR AMARELA, DE 20 MM | E140: M | F140: 6 | G140: 2.63 | H140: 3.03239 | I140: 18.19 | J140: 2.63
A141: 2.11.55 | B141: SINAPI | C141: 39128 | D141: ABRACADEIRA EM ACO PARA AMARRACAO DE ELETRODUTOS, TIPO D, COM 3/4" E CUNHA DE FIXACAO | E141: UNID. | F141: 60 | G141: 1.84 | H141: 2.12152 | I141: 127.29 | J141: 1.84
A142: 2.11.56 | B142: SINAPI | C142: 2556 | D142: CAIXA DE LUZ "4 X 2" EM ACO ESMALTADA | E142: UNID. | F142: 10 | G142: 1.53 | H142: 1.76409 | I142: 17.64 | J142: 1.53
A143: 2.11.57 | B143: SINAPI | C143: 10569 | D143: CAIXA DE PASSAGEM / DERIVACAO / LUZ, OCTOGONAL 4 X4, EM ACO ESMALTADA, COM FUNDO MOVEL SIMPLES (FMS) | E143: UNID. | F143: 24 | G143: 3.24 | H143: 3.73572 | I143: 89.66 | J143: 3.24
A144: 2.11.58 | B144: SINAPI | C144: 39811 | D144: CAIXA DE PASSAGEM ELETRICA DE PAREDE, DE EMBUTIR, EM PVC, COM TAMPA APARAFUSADA, DIMENSOES 150 X 150 X *75* MM | E144: UNID. | F144: 5 | G144: 44.16 | H144: 50.91648 | I144: 254.58 | J144: 44.16
A145: 2.11.59 | B145: SINAPI | C145: 34616 | D145: DISJUNTOR TIPO DIN/IEC, BIPOLAR DE 6 ATE 32A | E145: UNID. | F145: 2 | G145: 81.88 | H145: 94.40764 | I145: 188.82 | J145: 81.88
A146: 2.11.60 | B146: SINAPI | C146: 34653 | D146: DISJUNTOR TIPO DIN/IEC, MONOPOLAR DE 6 ATE 32A | E146: UNID. | F146: 3 | G146: 14.28 | H146: 16.46484 | I146: 49.39 | J146: 14.28
A147: 2.11.61 | B147: SINAPI | C147: 34709 | D147: DISJUNTOR TIPO DIN/IEC, TRIPOLAR DE 10 ATE 50A | E147: UNID. | F147: 3 | G147: 100.32 | H147: 115.66896 | I147: 347.01 | J147: 100.32
A148: 2.11.62 | B148: SINAPI | C148: 34714 | D148: DISJUNTOR TIPO DIN/IEC, TRIPOLAR 63 A | E148: UNID. | F148: 1 | G148: 119.81 | H148: 138.14093 | I148: 138.14 | J148: 119.81
A149: 2.11.63 | B149: SINAPI | C149: 40547 | D149: PARAFUSO ZINCADO, AUTOBROCANTE, FLANGEADO, 4,2 MM X 19 MM | E149: CENTO | F149: 1 | G149: 37.24 | H149: 42.93772 | I149: 42.94 | J149: 37.24
A150: 2.11.64 | B150: COTAÇÃO | D150: ADAPTADOR EM PVC DE REDUÇÃO PARA CONDULETE DE PVC, 1'' X 1/2'' | E150: UNID. | F150: 24 | G150: 5.56 | H150: 6.41068 | I150: 153.86 | J150: 5.56
A151: 2.11.65 | B151: COTAÇÃO | D151: ADAPTADOR EM PVC DE REDUÇÃO PARA CONDULETE DE PVC, 1'' X 3/4'' | E151: UNID. | F151: 5 | G151: =(J151) -> 5.12 | H151: 5.90336 | I151: =ROUND(F151*H151,2) -> 29.52 | J151: 5.12
A152: 2.11.66 | B152: COTAÇÃO | D152: CONDULETE EM PVC MÚLTIPLO ANTICHAMAS NA COR CINZA, DE 1'' COM 5 ENTRADAS SEM TAMPA | E152: UNID. | F152: 15 | G152: =(J152) -> 6.14 | H152: 7.07942 | I152: =ROUND(F152*H152,2) -> 106.19 | J152: 6.14
A153: 2.11.67 | B153: COTAÇÃO | D153: TAMPA CEGA EM PVC PARA CONDULETE DE PVC, 1'' | E153: UNID. | F153: 15 | G153: 2.75 | H153: =(J153*J$6) -> 3.17075 | I153: 47.56 | J153: 2.75
A154: 2.11.68 | B154: SINAPI | C154: 39272 | D154: CURVA 90 GRAUS, CURTA, DE PVC RIGIDO ROSCAVEL, DE 3/4", PARA ELETRODUTO | E154: UNID. | F154: 6 | G154: 2.98 | H154: 3.43594 | I154: 20.62 | J154: 2.98
A155: 2.11.69 | B155: SINAPI | C155: 1884 | D155: CURVA 90 GRAUS, LONGA, DE PVC RIGIDO ROSCAVEL, DE 1", PARA ELETRODUTO | E155: UNID. | F155: 1 | G155: =(J155) -> 4.82 | H155: 5.55746 | I155: =ROUND(F155*H155,2) -> 5.56 | J155: 4.82
A156: 2.11.70 | B156: SINAPI | C156: 1892 | D156: LUVA EM PVC RIGIDO ROSCAVEL, DE 1", PARA ELETRODUTO | E156: UNID. | F156: 2 | G156: 1.92 | H156: 2.21376 | I156: 4.43 | J156: 1.92
A157: 2.11.71 | B157: SINAPI | C157: 1891 | D157: LUVA EM PVC RIGIDO ROSCAVEL, DE 3/4", PARA ELETRODUTO | E157: UNID. | F157: 12 | G157: =(J157) -> 1.38 | H157: 1.59114 | I157: =ROUND(F157*H157,2) -> 19.09 | J157: 1.38
A158: 2.11.72 | B158: SINAPI | C158: 38075 | D158: TOMADA 2P+T 20A 250V, CONJUNTO MONTADO PARA EMBUTIR 4" X 2" (PLACA + SUPORTE + MODULO) | E158: UNID. | F158: 3 | G158: =(J158) -> 15.22 | H158: 17.54866 | I158: =ROUND(F158*H158,2) -> 52.65 | J158: 15.22
A159: 2.11.73 | B159: SINAPI | C159: 38069 | D159: INTERRUPTOR SIMPLES + INTERRUPTOR PARALELO 10A, 250V, CONJUNTO MONTADO PARA EMBUTIR 4" X 2" (PLACA + SUPORTE + MODULOS) | E159: UNID. | F159: 1 | G159: =(J159) -> 14.97 | H159: 17.26041 | I159: =ROUND(F159*H159,2) -> 17.26 | J159: 14.97
A160: 2.11.74 | B160: SINAPI | C160: 38073 | D160: INTERRUPTOR SIMPLES + 2 INTERRUPTORES PARALELOS 10A, 250V, CONJUNTO MONTADO PARA EMBUTIR 4" X 2" (PLACA + SUPORTE + MODULOS) | E160: UNID. | F160: 1 | G160: =(J160) -> 22.29 | H160: 25.70037 | I160: =ROUND(F160*H160,2) -> 25.7 | J160: 22.29
A161: 2.11.75 | B161: SINAPI | C161: 39391 | D161: LUMINARIA LED REFLETOR RETANGULAR BIVOLT, LUZ BRANCA, 50 W | E161: UNID. | F161: 2 | G161: 44 | H161: 50.732 | I161: 101.46 | J161: 44
A162: 2.11.76 | B162: COTAÇÃO | D162: LÂMPADA LED BULBO 100W E40 6500K ALTA POTÊNCIA 7500 LÚMENS | E162: UNID. | F162: 12 | G162: 132.1 | H162: 152.3113 | I162: 1827.74 | J162: 132.1
A163: 2.11.77 | B163: COTAÇÃO | D163: LÂMPADA LED BULBO, 3000K AMARELA, 16W (100-240V), BIVOLT, BASE E27, FLUXO LUMINOSO DE 1521lm | E163: UNID. | F163: 1 | G163: =(J163) -> 18.45 | H163: 21.27285 | I163: =ROUND(F163*H163,2) -> 21.27 | J163: 18.45
A164: 2.11.78 | B164: SINAPI | C164: 39805 | D164: QUADRO DE DISTRIBUICAO, EM PVC, DE EMBUTIR, COM BARRAMENTO TERRA / NEUTRO, PARA 12 DISJUNTORES NEMA OU 16 DISJUNTORES DIN | E164: UNID. | F164: 2 | G164: 150.72 | H164: 173.78016 | I164: 347.56 | J164: 150.72
A165: TOTAL | I165: =I9 -> 903944.92

Sheet CPU
C1: MINITÉRIO DA INTEGRAÇÃO E DESENVOLVIMENTO REGIONAL
C2: COMPANHIA DE DESENVOLVIMENTO DOS VALES DO SÃO FRANCISCO E DO PARNAÍBA
C3: 1° SUPERINTENDÊNCIA REGIONAL
A4: COMPOSIÇÕES DE PREÇO UNITÁRIO
A5: Local: | B5: Montes Claros - MG | G5: BDI Serviços: | H5: =BDI_SERV!B33 -> 0.229
A6: Data: | B6: 2023-11-22 | G6: BDI Materiais: | H6: =BDI_MAT!B32 -> 0.153
A7: Bases: | B7: SINAPI - 09/2023 | SICRO - 07/2023 | COPASA - 10/2023 | SETOP - 08/2023
A9: COMPOSIÇÃO DE PREÇO UNITÁRIO | H9: CPU001 | I9: XX
A10: DESCRIÇÃO DO SERVIÇO | G10: DATA BASE: | H10: 2023-09-01
A11: ADMINISTRAÇÃO LOCAL | G11: UNIDADE: | H11: GB
A12: MATERIAL
A13: BASE | B13: CÓDIGO | C13: DISCRIMINAÇÃO | D13: UNI | E13: QUANT. | G13: P.UNIT. | H13: P.TOTAL
A14: MERCADO | C14: TELEFONE E INTERNET | D14: mês | E14: 6 | G14: 99.9 | H14: =E14*G14 -> 599.4
A15: MERCADO | C15: MATERIAL PARA ESCRITÓRIO | D15: mês | E15: 6 | G15: 150 | H15: =E15*G15 -> 900
A16: MERCADO | C16: MATERIAL DE LIMPEZA | D16: mês | E16: 6 | G16: 50 | H16: =E16*G16 -> 300
A17: CPU | B17: CPU003 | C17: VEÍCULO LEVE PICAPE 4x4 PARA VISITAS - OPERAÇÃO E MANUTENÇÃO | D17: mês | E17: =6/4 -> 1.5 | G17: =H56 -> 4766.5988 | H17: =E17*G17 -> 7149.8982
A18: SUB-TOTAL | H18: =SUM(H14:H17) -> 8949.2982
A19: MÃO DE OBRA
A20: BASE | B20: CÓDIGO | C20: DISCRIMINAÇÃO | D20: UNI | E20: QUANT. | G20: P.UNIT. | H20: P.TOTAL
A21: SINAPI | B21: 93565 | C21: ENGENHEIRO CIVIL DE OBRA JUNIOR COM ENCARGOS COMPLEMENTARES | D21: mês | E21: =6*0.25 -> 1.5 | G21: 20078.54 | H21: =E21*G21 -> 30117.81
A22: SINAPI | B22: 40818 | C22: ENCARREGADO GERAL DE OBRAS (MENSALISTA) | D22: mês | E22: 6 | G22: 8310.58 | H22: =E22*G22 -> 49863.48
A23: SICRO | B23: P9806 | C23: =UPPER("Auxiliar administrativo") -> AUXILIAR ADMINISTRATIVO | D23: mês | E23: =6*0.25 -> 1.5 | G23: 1751.233 | H23: =E23*G23 -> 2626.8495
A24: SINAPI | B24: 100309 | C24: TÉCNICO EM SEGURANÇA DO TRABALHO COM ENCARGOS COMPLEMENTARES | D24: h | E24: =20*6 -> 120 | G24: 43.73 | H24: =E24*G24 -> 5247.6
G25: SUB-TOTAL | H25: =SUM(H21:H24) -> 87855.7395
C26: PRODUÇÃO DA EQUIPE | D26: 1 | G26: CUSTO | H26: =H25+H18 -> 96805.0377
A27: TOTAL - R$ | H27: =H26/D26 -> 96805.0377
A28: BDI % | H28: 1
A29: TOTAL DO SERVIÇO - R$ | H29: =H27*H28 -> 96805.0377
A31: COMPOSIÇÃO DE PREÇO UNITÁRIO | H31: CPU002 | I31: XX
A32: DESCRIÇÃO DO SERVIÇO | G32: DATA BASE: | H32: 2023-09-01
A33: MOBILIZAÇÃO E DESMOBILIZAÇÃO | G33: UNIDADE: | H33: GB
A34: EQUIPAMENTO
A35: BASE | B35: CÓDIGO | C35: DISCRIMINAÇÃO | D35: UNI | E35: QUANT. | F35: P.UN.PROD | G35: P.UN.IMPR | H35: P.TOTAL
A36: SINAPI | B36: 5678 | C36: RETROESCAVADEIRA SOBRE RODAS COM CARREGADEIRA, TRAÇÃO 4X4, POTÊNCIA LÍQ. 88 HP, CAÇAMBA CARREG. CAP. MÍN. 1 M3, CAÇAMBA RETRO CAP. 0,26 M3, PESO OPERACIONAL MÍN. 6.674 KG, PROFUNDIDADE ESCAVAÇÃO MÁX. 4,37 M - CHP DIURNO. | D36: chp | E36: 4 | F36: 160.97 | H36: =E36*F36+E36*G36 -> 643.88
A37: SINAPI | B37: 89883 | C37: CAMINHÃO BASCULANTE 18 M3, COM CAVALO MECÂNICO DE CAPACIDADE MÁXIMA DE TRAÇÃO COMBINADO DE 45000 KG, POTÊNCIA 330 CV, INCLUSIVE SEMIREBOQUE COM CAÇAMBA METÁLICA - CHP DIURNO. | D37: chp | E37: 4 | F37: 368.22 | H37: =E37*F37+E37*G37 -> 1472.88
A38: SINAPI | B38: 5928 | C38: GUINDAUTO HIDRÁULICO, CAPACIDADE MÁXIMA DE CARGA 6200 KG, MOMENTO MÁXIMO DE CARGA 11,7 TM, ALCANCE MÁXIMO HORIZONTAL 9,70 M, INCLUSIVE CAMINHÃO TOCO PBT 16.000 KG, POTÊNCIA DE 189 CV - CHP DIURNO. | D38: chp | E38: 4 | F38: 274.18 | H38: =E38*F38+E38*G38 -> 1096.72
A39: SUB-TOTAL | H39: =SUM(H36:H38) -> 3213.48
A40: PRODUÇÃO DA EQUIPE | D40: 1 | E40: CUSTO | H40: =H39 -> 3213.48
A41: TOTAL - R$ | H41: =H40/D40 -> 3213.48
A42: BDI % | H42: 1
A43: TOTAL DO SERVIÇO - R$ | H43: =H41*H42 -> 3213.48
A45: COMPOSIÇÃO DE PREÇO UNITÁRIO | H45: CPU003 | I45: XX
A46: DESCRIÇÃO DO SERVIÇO | G46: DATA BASE: | H46: 2023-07-01
A47: VEÍCULO LEVE PICAPE 4x4 PARA VISITAS - OPERAÇÃO E MANUTENÇÃO | G47: UNIDADE: | H47: MÊS
A48: MÃO DE OBRA
A49: BASE | B49: CÓDIGO | C49: DISCRIMINAÇÃO | D49: UNI | E49: QUANT. | G49: P.UNIT. | H49: P.TOTAL
A50: SICRO | B50: E9684 | C50: VEÍCULO LEVE PICAPE 4 X 4 COM CAPACIDADE DE 1,10 T - 147 KW | D50: chp | E50: 44 | G50: 106.5148 | H50: =E50*G50 -> 4686.6512
A51: SICRO | B51: E9684 | C51: VEÍCULO LEVE PICAPE 4 X 4 COM CAPACIDADE DE 1,10 T - 147 KW - MANUTENÇÃO | D51: h | E51: 4 | G51: 19.9869 | H51: =E51*G51 -> 79.9476
A52: SUB-TOTAL | H52: =SUM(H50:H51) -> 4766.5988
A53: PRODUÇÃO DA EQUIPE | D53: 1 | E53: CUSTO | H53: =H52 -> 4766.5988
A54: TOTAL - R$ | H54: =H53/D53 -> 4766.5988
A55: BDI % | H55: 1
A56: TOTAL DO SERVIÇO - R$ | H56: =H54*H55 -> 4766.5988
A58: COMPOSIÇÃO DE PREÇO UNITÁRIO | H58: CPU004 | I58: XX
A59: DESCRIÇÃO DO SERVIÇO | G59: DATA BASE: | H59: 2023-09-01
A60: LOCAÇÃO DE OBRAS | G60: UNIDADE: | H60: M2
A61: MATERIAIS
A62: BASE | B62: CÓDIGO | C62: DISCRIMINAÇÃO | D62: UNI | E62: QUANT. | G62: P.UNIT. | H62: P.TOTAL
A63: SINAPI | B63: 5075 | C63: PREGO DE ACO POLIDO COM CABECA 18 X 30 (2 3/4 X 10) | D63: kg | E63: 0.01 | G63: 19.23 | H63: =E63*G63 -> 0.1923
A64: SINAPI | B64: 3993 | C64: TABUA APARELHADA *2,5 X 15* CM, EM MACARANDUBA, ANGELIM OU EQUIVALENTE DA REGIAO | D64: m² | E64: 0.01 | G64: 179.03 | H64: =E64*G64 -> 1.7903
A65: SINAPI | B65: 4491 | C65: PONTALETE *7,5 X 7,5* CM EM PINUS, MISTA OU EQUIVALENTE DA REGIAO - BRUTA | D65: m | E65: 0.012 | G65: 99.19 | H65: =E65*G65 -> 1.19028
A66: SUB-TOTAL | H66: =SUM(H63:H65) -> 3.17288
A67: MÃO DE OBRA
A68: BASE | B68: CÓDIGO | C68: DISCRIMINAÇÃO | D68: UNI | E68: QUANT. | G68: P.UNIT. | H68: P.TOTAL
A69: SINAPI | B69: 88316 | C69: SERVENTE COM ENCARGOS COMPLEMENTARES | D69: h | E69: 0.1 | G69: 19.76 | H69: =E69*G69 -> 1.976
A70: SINAPI | B70: 88309 | C70: PEDREIRO COM ENCARGOS COMPLEMENTARES | D70: h | E70: 0.1 | G70: 27.45 | H70: =E70*G70 -> 2.745
A71: SUB-TOTAL | H71: =SUM(H69:H70) -> 4.721
A72: PRODUÇÃO DA EQUIPE | D72: 1 | E72: CUSTO | H72: =H66+H71 -> 7.89388
A73: TOTAL - R$ | H73: =H72/D72 -> 7.89388
A74: BDI % | H74: 1
A75: TOTAL DO SERVIÇO - R$ | H75: =H73*H74 -> 7.89388
A77: COMPOSIÇÃO DE PREÇO UNITÁRIO | H77: CPU005 | I77: XX
A78: DESCRIÇÃO DO SERVIÇO | G78: DATA BASE: | H78: 2023-09-01
A79: EXECUÇÃO DE INSTALAÇÕES ELÉTRICAS, EXCLUSIVE EQUIPAMENTOS | G79: UNIDADE: | H79: GB
A80: MÃO DE OBRA
A81: BASE | B81: CÓDIGO | C81: DISCRIMINAÇÃO | D81: UNI | E81: QUANT. | G81: P.UNIT. | H81: P.TOTAL
A82: SINAPI | B82: 88264 | C82: ELETRICISTA COM ENCARGOS COMPLEMENTARES | D82: h | E82: 80 | G82: 27.8 | H82: =E82*G82 -> 2224
A83: SINAPI | B83: 88247 | C83: AUXILIAR DE ELETRICISTA COM ENCARGOS COMPLEMENTARES | D83: h | E83: 160 | G83: 22.34 | H83: =E83*G83 -> 3574.4
A84: SUB-TOTAL | H84: =SUM(H82:H83) -> 5798.4
A85: PRODUÇÃO DA EQUIPE | D85: 1 | E85: CUSTO | H85: =H84 -> 5798.4
A86: TOTAL - R$ | H86: =H85/D85 -> 5798.4
A87: BDI % | H87: 1
A88: TOTAL DO SERVIÇO - R$ | H88: =H86*H87 -> 5798.4
A90: COMPOSIÇÃO DE PREÇO UNITÁRIO | H90: CPU006 | I90: XX
A91: DESCRIÇÃO DO SERVIÇO | G91: DATA BASE: | H91: 2023-09-01
A92: ANDAIME TIPO FACHADEIRO, INCLUSIVE ESTRADO DE MADEIRA | G92: UNIDADE: | H92: M2
A93: MATERIAIS
A94: BASE | B94: CÓDIGO | C94: DISCRIMINAÇÃO | D94: UNI | E94: QUANT. | G94: P.UNIT. | H94: P.TOTAL
A95: COPASA | B95: 25005430 | C95: ANDAIME TUBULAR 01 PAINEL 1000X1040MM | D95: un | E95: 1 | G95: 67.72 | H95: =E95*G95 -> 67.72
A96: SINAPI | B96: 1358 | C96: CHAPA/PAINEL DE MADEIRA COMPENSADA RESINADA (MADEIRITE RESINADO ROSA) PARA FORMA DE CONCRETO, DE 2200 x 1100 MM, E = 17 MM | D96: m² | E96: 0.03 | G96: 46.88 | H96: =E96*G96 -> 1.4064
A97: SINAPI | B97: 4513 | C97: CAIBRO 5 X 5 CM EM PINUS, MISTA OU EQUIVALENTE DA REGIAO - BRUTA | D97: m² | E97: 0.2 | G97: 6.11 | H97: =E97*G97 -> 1.222
A98: SINAPI | B98: 5075 | C98: PREGO DE ACO POLIDO COM CABECA 18 X 30 (2 3/4 X 10) | D98: kg | E98: 0.01 | G98: 19.23 | H98: =E98*G98 -> 0.1923
A99: SUB-TOTAL | H99: =SUM(H95:H98) -> 70.5407
A100: MÃO DE OBRA
A101: BASE | B101: CÓDIGO | C101: DISCRIMINAÇÃO | D101: UNI | E101: QUANT. | G101: P.UNIT. | H101: P.TOTAL
A102: SINAPI | B102: 88316 | C102: SERVENTE COM ENCARGOS COMPLEMENTARES | D102: h | E102: 1.1 | G102: 19.76 | H102: =E102*G102 -> 21.736
A103: SINAPI | B103: 88309 | C103: PEDREIRO COM ENCARGOS COMPLEMENTARES | D103: h | E103: 0.1 | G103: 27.45 | H103: =E103*G103 -> 2.745
A104: SUB-TOTAL | H104: =SUM(H102:H103) -> 24.481
A105: PRODUÇÃO DA EQUIPE | D105: 1 | E105: CUSTO | H105: =H99+H104 -> 95.0217
A106: TOTAL - R$ | H106: =H105/D105 -> 95.0217
A107: BDI % | H107: 1
A108: TOTAL DO SERVIÇO - R$ | H108: =H106*H107 -> 95.0217
A110: COMPOSIÇÃO DE PREÇO UNITÁRIO | H110: CPU007 | I110: XX
A111: DESCRIÇÃO DO SERVIÇO | G111: DATA BASE: | H111: 2023-09-01
A112: LASTRO COM MATERIAL GRANULAR (PEDRA BRITADA N.2), ESPESSURA DE 3 CM PARA PLATAFORMA DO LAVA-JATO | G112: UNIDADE: | H112: M3
A113: EQUIPAMENTOS
A114: BASE | B114: CÓDIGO | C114: DISCRIMINAÇÃO | D114: UNI | E114: QUANT. | F114: P.UN.PROD | G114: P.UN.IMPR | H114: P.TOTAL
A115: SINAPI | B115: 91277 | C115: PLACA VIBRATÓRIA REVERSÍVEL COM MOTOR 4 TEMPOS A GASOLINA, FORÇA CENTRÍFUGA DE 25 KN (2500 KGF), POTÊNCIA 5,5 CV - CHP DIURNO. | D115: chp | E115: 0.032 | F115: 8.77 | H115: =(E115*G115)+(E115*F115) -> 0.28064
A116: SINAPI | B116: 91278 | C116: PLACA VIBRATÓRIA REVERSÍVEL COM MOTOR 4 TEMPOS A GASOLINA, FORÇA CENTRÍFUGA DE 25 KN (2500 KGF), POTÊNCIA 5,5 CV - CHI DIURNO. | D116: chi | E116: 0.03 | G116: 0.52 | H116: =(E116*G116)+(E116*F116) -> 0.0156
A117: SUB-TOTAL | H117: =SUM(H115:H116) -> 0.29624
A118: SERVIÇOS AUXILIARES
A119: BASE | B119: CÓDIGO | C119: DISCRIMINAÇÃO | D119: UNI | E119: QUANT. | G119: P.UNIT. | H119: P.TOTAL
A120: SINAPI | B120: 100975 | C120: CARGA, MANOBRA E DESCARGA DE SOLOS E MATERIAIS GRANULARES EM CAMINHÃO BASCULANTE 14 M³ - CARGA COM PÁ CARREGADEIRA (CAÇAMBA DE 1,7 A 2,8 M³/ 128 HP) E DESCARGA LIVRE (UNIDADE: M3). | D120: m³ | E120: 1.13 | G120: 9.25 | H120: =E120*G120 -> 10.4525
A121: SINAPI | B121: 93588 | C121: TRANSPORTE COM CAMINHÃO BASCULANTE DE 10 M³, EM VIA URBANA EM LEITO NATURAL | D121: m³xkm | E121: =1.13*3 -> 3.39 | G121: 3.11 | H121: =E121*G121 -> 10.5429
A122: SUB-TOTAL | H122: =SUM(H120:H121) -> 20.9954
A123: MATERIAIS
A124: BASE | B124: CÓDIGO | C124: DISCRIMINAÇÃO | D124: UNI | E124: QUANT. | G124: P.UNIT. | H124: P.TOTAL
A125: SINAPI | B125: 4718 | C125: PEDRA BRITADA N. 2 (19 A 38 MM) POSTO PEDREIRA/FORNECEDOR, SEM FRETE | D125: m³ | E125: 1.13 | G125: 118.26 | H125: =E125*G125 -> 133.6338
A126: SUB-TOTAL | H126: =SUM(H125:H125) -> 133.6338
A127: MÃO DE OBRA
A128: BASE | B128: CÓDIGO | C128: DISCRIMINAÇÃO | D128: UNI | E128: QUANT. | G128: P.UNIT. | H128: P.TOTAL
A129: SINAPI | B129: 88316 | C129: SERVENTE COM ENCARGOS COMPLEMENTARES | D129: h | E129: 0.343 | G129: 19.76 | H129: =E129*G129 -> 6.77768
A130: SINAPI | B130: 88309 | C130: PEDREIRO COM ENCARGOS COMPLEMENTARES | D130: h | E130: 1.03 | G130: 27.45 | H130: =E130*G130 -> 28.2735
A131: SUB-TOTAL | H131: =SUM(H129:H130) -> 35.05118
A132: PRODUÇÃO DA EQUIPE | D132: 1 | E132: CUSTO | H132: =H126+H131+H122+H117 -> 189.97662
A133: TOTAL - R$ | H133: =H132/D132 -> 189.97662
A134: BDI % | H134: 1
A135: TOTAL DO SERVIÇO - R$ | H135: =H133*H134 -> 189.97662
A137: COMPOSIÇÃO DE PREÇO UNITÁRIO | H137: CPU008 | I137: XX
A138: DESCRIÇÃO DO SERVIÇO | G138: DATA BASE: | H138: 2023-09-01
A139: FORNECIMENTO E INSTALAÇÃO DE TIRANTE EM AÇO 10mm INCLUSO IÇAMENTO | G139: UNIDADE: | H139: KG
A140: EQUIPAMENTOS
A141: BASE | B141: CÓDIGO | C141: DISCRIMINAÇÃO | D141: UNI | E141: QUANT. | F141: P.UN.PROD | G141: P.UN.IMPR | H141: P.TOTAL
A142: SINAPI | B142: 93281 | C142: GUINCHO ELÉTRICO DE COLUNA, CAPACIDADE 400 KG, COM MOTO FREIO, MOTOR TRIFÁSICO DE 1,25 CV - CHP DIURNO. | D142: chp | E142: 0.0016 | F142: 33.54 | H142: =(E142*G142)+(E142*F142) -> 0.053664
A143: SINAPI | B143: 93282 | C143: GUINCHO ELÉTRICO DE COLUNA, CAPACIDADE 400 KG, COM MOTO FREIO, MOTOR TRIFÁSICO DE 1,25 CV - CHI DIURNO. | D143: chi | E143: 0.002 | G143: 32.58 | H143: =(E143*G143)+(E143*F143) -> 0.06516
A144: SUB-TOTAL | H144: =SUM(H142:H143) -> 0.118824
A145: MATERIAIS
A146: BASE | B146: CÓDIGO | C146: DISCRIMINAÇÃO | D146: UNI | E146: QUANT. | G146: P.UNIT. | H146: P.TOTAL
A147: SINAPI | B147: 34 | C147: ACO CA-50, 10,0 MM, VERGALHAO | D147: kg | E147: 1.05 | G147: 7.4 | H147: =E147*G147 -> 7.77
A148: SUB-TOTAL | H148: =SUM(H147:H147) -> 7.77
A149: MÃO DE OBRA
A150: BASE | B150: CÓDIGO | C150: DISCRIMINAÇÃO | D150: UNI | E150: QUANT. | G150: P.UNIT. | H150: P.TOTAL
A151: SINAPI | B151: 88278 | C151: MONTADOR DE ESTRUTURA METÁLICA COM ENCARGOS COMPLEMENTARES | D151: h | E151: 0.049 | G151: 32.14 | H151: =E151*G151 -> 1.57486
A152: SINAPI | B152: 88316 | C152: SERVENTE COM ENCARGOS COMPLEMENTARES | D152: h | E152: 0.024 | G152: 19.76 | H152: =E152*G152 -> 0.47424
A153: SUB-TOTAL | H153: =SUM(H151:H152) -> 2.0491
A154: PRODUÇÃO DA EQUIPE | D154: 1 | E154: CUSTO | H154: =H148+H153+H144 -> 9.937924
A155: TOTAL - R$ | H155: =H154/D154 -> 9.937924
A156: BDI % | H156: 1
A157: TOTAL DO SERVIÇO - R$ | H157: =H155*H156 -> 9.937924
A159: COMPOSIÇÃO DE PREÇO UNITÁRIO | H159: CPU009 | I159: XX
A160: DESCRIÇÃO DO SERVIÇO | G160: DATA BASE: | H160: 2023-09-01
A161: FORNECIMENTO E INSTALAÇÃO DE CHUMBADORES DE AÇO GALVANIZADO PARA FIXAÇÃO DOS PILARES | G161: UNIDADE: | H161: UNID.
A162: MATERIAIS
A163: BASE | B163: CÓDIGO | C163: DISCRIMINAÇÃO | D163: UNI | E163: QUANT. | G163: P.UNIT. | H163: P.TOTAL
A164: SINAPI | B164: 39746 | C164: CHUMBADOR DE ACO GALVANIZADO, 1" X 600 MM, PARA POSTES DE ACO COM BASE, INCLUSO PORCA E ARRUELA | D164: un | E164: 1 | G164: 111.44 | H164: =E164*G164 -> 111.44
A165: SUB-TOTAL | H165: =SUM(H164:H164) -> 111.44
A166: MÃO DE OBRA
A167: BASE | B167: CÓDIGO | C167: DISCRIMINAÇÃO | D167: UNI | E167: QUANT. | G167: P.UNIT. | H167: P.TOTAL
A168: SINAPI | B168: 88316 | C168: SERVENTE COM ENCARGOS COMPLEMENTARES | D168: h | E168: 0.1 | G168: 19.76 | H168: =E168*G168 -> 1.976
A169: SUB-TOTAL | H169: =SUM(H168:H168) -> 1.976
A170: PRODUÇÃO DA EQUIPE | D170: 1 | E170: CUSTO | H170: =H165+H169 -> 113.416
A171: TOTAL - R$ | H171: =H170/D170 -> 113.416
A172: BDI % | H172: 1
A173: TOTAL DO SERVIÇO - R$ | H173: =H171*H172 -> 113.416
A175: COMPOSIÇÃO DE PREÇO UNITÁRIO | H175: CPU010 | I175: XX
A176: DESCRIÇÃO DO SERVIÇO | G176: DATA BASE: | H176: 2023-09-01
A177: ESTACA HÉLICE CONTÍNUA, DIÂMETRO DE 60 CM, INCLUSO CONCRETO FCK=25MPA E ARMADURA (EXCLUSIVE MOBILIZAÇÃO E DESMOBILIZAÇÃO). | G177: UNIDADE: | H177: M
A178: EQUIPAMENTOS
A179: BASE | B179: CÓDIGO | C179: DISCRIMINAÇÃO | D179: UNI | E179: QUANT. | F179: P.UN.PROD | G179: P.UN.IMPR | H179: P.TOTAL
A180: SINAPI | B180: 90674 | C180: PERFURATRIZ COM TORRE METÁLICA PARA EXECUÇÃO DE ESTACA HÉLICE CONTÍNUA, PROFUNDIDADE MÁXIMA DE 30 M, DIÂMETRO MÁXIMO DE 800 MM, POTÊNCIA INSTALADA DE 268 HP, MESA ROTATIVA COM TORQUE MÁXIMO DE 170 KNM - CHP DIURNO. | D180: chp | E180: 0.0344 | F180: 706.26 | H180: =(E180*G180)+(E180*F180) -> 24.295344
A181: SINAPI | B181: 90675 | C181: PERFURATRIZ COM TORRE METÁLICA PARA EXECUÇÃO DE ESTACA HÉLICE CONTÍNUA, PROFUNDIDADE MÁXIMA DE 30 M, DIÂMETRO MÁXIMO DE 800 MM, POTÊNCIA INSTALADA DE 268 HP, MESA ROTATIVA COM TORQUE MÁXIMO DE 170 KNM - CHI DIURNO. | D181: chi | E181: 0.0845 | G181: 311.57 | H181: =(E181*G181)+(E181*F181) -> 26.327665
A182: SUB-TOTAL | H182: =SUM(H180:H181) -> 50.623009
A183: MATERIAIS
A184: BASE | B184: CÓDIGO | C184: DISCRIMINAÇÃO | D184: UNI | E184: QUANT. | G184: P.UNIT. | H184: P.TOTAL
A185: SINAPI | B185: 38408 | C185: CONCRETO USINADO BOMBEAVEL, CLASSE DE RESISTENCIA C25, COM BRITA 0 E 1, SLUMP = 190 +/- 20 MM, EXCLUI SERVICO DE BOMBEAMENTO (NBR 8953) | D185: m³ | E185: =3.1416*0.6*0.6/4 -> 0.282744 | G185: 650.04 | H185: =E185*G185 -> 183.7949098
A186: SUB-TOTAL | H186: =SUM(H185:H185) -> 183.7949098
A187: SERVIÇOS AUXILIARES
A188: BASE | B188: CÓDIGO | C188: DISCRIMINAÇÃO | D188: UNI | E188: QUANT. | G188: P.UNIT. | H188: P.TOTAL
A189: SINAPI | B189: 95578 | C189: MONTAGEM DE ARMADURA DE ESTACAS, DIÂMETRO = 12,5 MM. | D189: kg | E189: 11.54506803 | G189: 8.39 | H189: =E189*G189 -> 96.86312077
A190: SINAPI | B190: 95583 | C190: MONTAGEM DE ARMADURA TRANSVERSAL DE ESTACAS DE SEÇÃO CIRCULAR, DIÂMETRO = 5,0 MM. | D190: kg | E190: 1.119897959 | G190: 15.34 | H190: =E190*G190 -> 17.17923469
A191: SINAPI | B191: 97913 | C191: TRANSPORTE COM CAMINHÃO BASCULANTE DE 6 M³, EM VIA URBANA EM REVESTIMENTO M3XKMPRIMÁRIO (UNIDADE: M3XKM). | D191: m³xkm | E191: 0.28 | G191: 3.22 | H191: =E191*G191 -> 0.9016
A192: SINAPI | B192: 100973 | C192: CARGA, MANOBRA E DESCARGA DE SOLOS E MATERIAIS GRANULARES EM CAMINHÃO BASCULANTE 6 M³ - CARGA COM PÁ CARREGADEIRA (CAÇAMBA DE 1,7 A 2,8 M³ / 128 HP) E DESCARGA LIVRE (UNIDADE: M3). | D192: m³ | E192: 0.4839 | G192: 9.52 | H192: =E192*G192 -> 4.606728
A193: SUB-TOTAL | H193: =SUM(H189:H192) -> 119.5506835
A194: MÃO DE OBRA
A195: BASE | B195: CÓDIGO | C195: DISCRIMINAÇÃO | D195: UNI | E195: QUANT. | G195: P.UNIT. | H195: P.TOTAL
A196: SINAPI | B196: 90778 | C196: ENGENHEIRO CIVIL DE OBRA PLENO COM ENCARGOS COMPLEMENTARES | D196: h | E196: 0.0223 | G196: 117.97 | H196: =E196*G196 -> 2.630731
A197: SINAPI | B197: 90776 | C197: ENCARREGADO GERAL COM ENCARGOS COMPLEMENTARES | D197: h | E197: 0.1189 | G197: 50.6 | H197: =E197*G197 -> 6.01634
A198: SINAPI | B198: 88316 | C198: SERVENTE COM ENCARGOS COMPLEMENTARES | D198: h | E198: 0.3566 | G198: 19.76 | H198: =E198*G198 -> 7.046416
A199: SUB-TOTAL | H199: =SUM(H196:H198) -> 15.693487
A200: PRODUÇÃO DA EQUIPE | D200: 1 | E200: CUSTO | H200: =H186+H199+H182+H193 -> 369.6620892
A201: TOTAL - R$ | H201: =H200/D200 -> 369.6620892
A202: BDI % | H202: 1
A203: TOTAL DO SERVIÇO - R$ | H203: =H201*H202 -> 369.6620892
A205: COMPOSIÇÃO DE PREÇO UNITÁRIO | H205: CPU011 | I205: XX
A206: DESCRIÇÃO DO SERVIÇO | G206: DATA BASE: | H206: 2023-09-01
A207: SUPORTE PARA TUBO EM FITA PERFURADA DE AÇO INOXIDÁVEL 19mm, INCLUSO PARAFUSO E BUCHA DE NYLON, CONFORME ESPECIFICAÇÕES DE PROEJTO - FORNECIMENTO E INSTALAÇÃO | G207: UNIDADE: | H207: UNID.
A208: MATERIAIS
A209: BASE | B209: CÓDIGO | C209: DISCRIMINAÇÃO | D209: UNI | E209: QUANT. | G209: P.UNIT. | H209: P.TOTAL
A210: SINAPI | B210: 14153 | C210: FITA METALICA PERFURADA, L = *18* MM, ROLO DE 30 M, CARGA RECOMENDADA = *30* KGF | D210: un | E210: 0.1 | G210: 109.89 | H210: =E210*G210 -> 10.989
A211: SINAPI | B211: 4375 | C211: BUCHA DE NYLON SEM ABA S6 | D211: un | E211: 1 | G211: 0.11 | H211: =E211*G211 -> 0.11
... 168 more rows

Sheet BDI_SERV
A1: =#REF! -> 
A2: =#REF! -> 
A3: =#REF! -> 
A4: DETALHAMENTO DO BDI - SERVIÇOS
A5: Local: | B5: =#REF! ->  | F5: BDI Serviços: | G5: =B33 -> 0.229
A6: Data: | B6: =#REF! ->  | F6: BDI Materiais: | G6: =BDI_MAT!B32 -> 0.153
A7: Bases: | B7: =#REF! ->  | F7: Revisão: | G7: =#REF! -> 
A9: TIPO DE OBRA:
A10: CONSTRUÇÕES DE EDÍFICIOS
A12: ITEM | B12: DESCRIÇÃO DOS SERVIÇOS | D12: %
I13: DESCRIÇÃO DO SERVIÇOS | J13: 1° QUARTIL | K13: MÉDIO | L13: 3° QUARTIL | O13: VALORES DO BDI POR TIPO DE OBRA
I14: ADMINISTRAÇÃO CENTRAL | J14: =IF($A$10="CONSTRUÇÕES DE EDÍFICIOS",INDEX($P$25:$P$29,MATCH($A$10,$O$25:$O$29,0)),IF($A$10="CONSTRUÇÃO DE RODOVIAS E FERROVIAS",INDEX($P$25:$P$29,MATCH($A$10,$O$25:$O$29,0)),IF($A$10="CONSTRUÇÃO DE REDES DE ABASTECIMENTO DE ÁGUA, COLETA DE ESGOTO E CONSTRUÇÕES CORRELATAS",INDEX($P$25:$P$29,MATCH($A$10,$O$25:$O$29,0)),IF($A$10="CONSTRUÇÃO E MANUTENÇÃO DE ESTAÇÕES E REDES DE DISTRIBUIÇÃO DE ENERGIA ELÉTRICA",INDEX($P$25:$P$29,MATCH($A$10,$O$25:$O$29,0)),INDEX($P$25:$P$29,MATCH($A$10,$O$25:$O$29,0)))))) -> 0.03 | K14: =IF($A$10="CONSTRUÇÕES DE EDÍFICIOS",INDEX($Q$25:$Q$29,MATCH($A$10,$O$25:$O$29,0)),IF($A$10="CONSTRUÇÃO DE RODOVIAS E FERROVIAS",INDEX($Q$25:$Q$29,MATCH($A$10,$O$25:$O$29,0)),IF($A$10="CONSTRUÇÃO DE REDES DE ABASTECIMENTO DE ÁGUA, COLETA DE ESGOTO E CONSTRUÇÕES CORRELATAS",INDEX($Q$25:$Q$29,MATCH($A$10,$O$25:$O$29,0)),IF($A$10="CONSTRUÇÃO E MANUTENÇÃO DE ESTAÇÕES E REDES DE DISTRIBUIÇÃO DE ENERGIA ELÉTRICA",INDEX($Q$25:$Q$29,MATCH($A$10,$O$25:$O$29,0)),INDEX($Q$25:$Q$29,MATCH($A$10,$O$25:$O$29,0)))))) -> 0.04 | L14: =IF($A$10="CONSTRUÇÕES DE EDÍFICIOS",INDEX($R$25:$R$29,MATCH($A$10,$O$25:$O$29,0)),IF($A$10="CONSTRUÇÃO DE RODOVIAS E FERROVIAS",INDEX($R$25:$R$29,MATCH($A$10,$O$25:$O$29,0)),IF($A$10="CONSTRUÇÃO DE REDES DE ABASTECIMENTO DE ÁGUA, COLETA DE ESGOTO E CONSTRUÇÕES CORRELATAS",INDEX($R$25:$R$29,MATCH($A$10,$O$25:$O$29,0)),IF($A$10="CONSTRUÇÃO E MANUTENÇÃO DE ESTAÇÕES E REDES DE DISTRIBUIÇÃO DE ENERGIA ELÉTRICA",INDEX($R$25:$R$29,MATCH($A$10,$O$25:$O$29,0)),INDEX($R$25:$R$29,MATCH($A$10,$O$25:$O$29,0)))))) -> 0.055 | O14: TIPOS DE OBRA | P14: 1° QUARTIL | Q14: MÉDIO | R14: 3° QUARTIL
A15: 1 | B15: ADMINISTRAÇÃO CENTRAL | D15: 0.04 | E15: a = | F15: Administração Central | I15: SEGUROS E GARANTIAS | J15: =IF($A$10="CONSTRUÇÕES DE EDÍFICIOS",INDEX($S$25:$S$29,MATCH($A$10,$O$25:$O$29,0)),IF($A$10="CONSTRUÇÃO DE RODOVIAS E FERROVIAS",INDEX($S$25:$S$29,MATCH($A$10,$O$25:$O$29,0)),IF($A$10="CONSTRUÇÃO DE REDES DE ABASTECIMENTO DE ÁGUA, COLETA DE ESGOTO E CONSTRUÇÕES CORRELATAS",INDEX($S$25:$S$29,MATCH($A$10,$O$25:$O$29,0)),IF($A$10="CONSTRUÇÃO E MANUTENÇÃO DE ESTAÇÕES E REDES DE DISTRIBUIÇÃO DE ENERGIA ELÉTRICA",INDEX($S$25:$S$29,MATCH($A$10,$O$25:$O$29,0)),INDEX($S$25:$S$29,MATCH($A$10,$O$25:$O$29,0)))))) -> 0.008 | K15: =IF($A$10="CONSTRUÇÕES DE EDÍFICIOS",INDEX($T$25:$T$29,MATCH($A$10,$O$25:$O$29,0)),IF($A$10="CONSTRUÇÃO DE RODOVIAS E FERROVIAS",INDEX($T$25:$T$29,MATCH($A$10,$O$25:$O$29,0)),IF($A$10="CONSTRUÇÃO DE REDES DE ABASTECIMENTO DE ÁGUA, COLETA DE ESGOTO E CONSTRUÇÕES CORRELATAS",INDEX($T$25:$T$29,MATCH($A$10,$O$25:$O$29,0)),IF($A$10="CONSTRUÇÃO E MANUTENÇÃO DE ESTAÇÕES E REDES DE DISTRIBUIÇÃO DE ENERGIA ELÉTRICA",INDEX($T$25:$T$29,MATCH($A$10,$O$25:$O$29,0)),INDEX($T$25:$T$29,MATCH($A$10,$O$25:$O$29,0)))))) -> 0.008 | L15: =IF($A$10="CONSTRUÇÕES DE EDÍFICIOS",INDEX($U$25:$U$29,MATCH($A$10,$O$25:$O$29,0)),IF($A$10="CONSTRUÇÃO DE RODOVIAS E FERROVIAS",INDEX($U$25:$U$29,MATCH($A$10,$O$25:$O$29,0)),IF($A$10="CONSTRUÇÃO DE REDES DE ABASTECIMENTO DE ÁGUA, COLETA DE ESGOTO E CONSTRUÇÕES CORRELATAS",INDEX($U$25:$U$29,MATCH($A$10,$O$25:$O$29,0)),IF($A$10="CONSTRUÇÃO E MANUTENÇÃO DE ESTAÇÕES E REDES DE DISTRIBUIÇÃO DE ENERGIA ELÉTRICA",INDEX($U$25:$U$29,MATCH($A$10,$O$25:$O$29,0)),INDEX($U$25:$U$29,MATCH($A$10,$O$25:$O$29,0)))))) -> 0.01 | O15: CONSTRUÇÕES DE EDÍFICIOS | P15: 0.2034 | Q15: 0.2212 | R15: 0.25
I16: RISCOS | J16: =IF($A$10="CONSTRUÇÕES DE EDÍFICIOS",INDEX($V$25:$V$29,MATCH($A$10,$O$25:$O$29,0)),IF($A$10="CONSTRUÇÃO DE RODOVIAS E FERROVIAS",INDEX($V$25:$V$29,MATCH($A$10,$O$25:$O$29,0)),IF($A$10="CONSTRUÇÃO DE REDES DE ABASTECIMENTO DE ÁGUA, COLETA DE ESGOTO E CONSTRUÇÕES CORRELATAS",INDEX($V$25:$V$29,MATCH($A$10,$O$25:$O$29,0)),IF($A$10="CONSTRUÇÃO E MANUTENÇÃO DE ESTAÇÕES E REDES DE DISTRIBUIÇÃO DE ENERGIA ELÉTRICA",INDEX($V$25:$V$29,MATCH($A$10,$O$25:$O$29,0)),INDEX($V$25:$V$29,MATCH($A$10,$O$25:$O$29,0)))))) -> 0.0097 | K16: =IF($A$10="CONSTRUÇÕES DE EDÍFICIOS",INDEX($W$25:$W$29,MATCH($A$10,$O$25:$O$29,0)),IF($A$10="CONSTRUÇÃO DE RODOVIAS E FERROVIAS",INDEX($W$25:$W$29,MATCH($A$10,$O$25:$O$29,0)),IF($A$10="CONSTRUÇÃO DE REDES DE ABASTECIMENTO DE ÁGUA, COLETA DE ESGOTO E CONSTRUÇÕES CORRELATAS",INDEX($W$25:$W$29,MATCH($A$10,$O$25:$O$29,0)),IF($A$10="CONSTRUÇÃO E MANUTENÇÃO DE ESTAÇÕES E REDES DE DISTRIBUIÇÃO DE ENERGIA ELÉTRICA",INDEX($W$25:$W$29,MATCH($A$10,$O$25:$O$29,0)),INDEX($W$25:$W$29,MATCH($A$10,$O$25:$O$29,0)))))) -> 0.0127 | L16: =IF($A$10="CONSTRUÇÕES DE EDÍFICIOS",INDEX($X$25:$X$29,MATCH($A$10,$O$25:$O$29,0)),IF($A$10="CONSTRUÇÃO DE RODOVIAS E FERROVIAS",INDEX($X$25:$X$29,MATCH($A$10,$O$25:$O$29,0)),IF($A$10="CONSTRUÇÃO DE REDES DE ABASTECIMENTO DE ÁGUA, COLETA DE ESGOTO E CONSTRUÇÕES CORRELATAS",INDEX($X$25:$X$29,MATCH($A$10,$O$25:$O$29,0)),IF($A$10="CONSTRUÇÃO E MANUTENÇÃO DE ESTAÇÕES E REDES DE DISTRIBUIÇÃO DE ENERGIA ELÉTRICA",INDEX($X$25:$X$29,MATCH($A$10,$O$25:$O$29,0)),INDEX($X$25:$X$29,MATCH($A$10,$O$25:$O$29,0)))))) -> 0.0127 | O16: CONSTRUÇÃO DE RODOVIAS E FERROVIAS | P16: 0.196 | Q16: 0.2097 | R16: 0.2423
A17: 2 | B17: IMPOSTOS E TAXAS | D17: =SUM(D18:D20) -> 0.0615 | E17: i = | F17: Impostos | I17: DESPESAS FINANCEIRAS | J17: =IF($A$10="CONSTRUÇÕES DE EDÍFICIOS",INDEX($P$33:$P$36,MATCH($A$10,$O$25:$O$29,0)),IF($A$10="CONSTRUÇÃO DE RODOVIAS E FERROVIAS",INDEX($P$33:$P$36,MATCH($A$10,$O$25:$O$29,0)),IF($A$10="CONSTRUÇÃO DE REDES DE ABASTECIMENTO DE ÁGUA, COLETA DE ESGOTO E CONSTRUÇÕES CORRELATAS",INDEX($P$33:$P$36,MATCH($A$10,$O$25:$O$29,0)),IF($A$10="CONSTRUÇÃO E MANUTENÇÃO DE ESTAÇÕES E REDES DE DISTRIBUIÇÃO DE ENERGIA ELÉTRICA",INDEX($P$33:$P$36,MATCH($A$10,$O$25:$O$29,0)),INDEX($P$33:$P$36,MATCH($A$10,$O$25:$O$29,0)))))) -> 0.0059 | K17: =IF($A$10="CONSTRUÇÕES DE EDÍFICIOS",INDEX($Q$33:$Q$36,MATCH($A$10,$O$25:$O$29,0)),IF($A$10="CONSTRUÇÃO DE RODOVIAS E FERROVIAS",INDEX($Q$33:$Q$36,MATCH($A$10,$O$25:$O$29,0)),IF($A$10="CONSTRUÇÃO DE REDES DE ABASTECIMENTO DE ÁGUA, COLETA DE ESGOTO E CONSTRUÇÕES CORRELATAS",INDEX($Q$33:$Q$36,MATCH($A$10,$O$25:$O$29,0)),IF($A$10="CONSTRUÇÃO E MANUTENÇÃO DE ESTAÇÕES E REDES DE DISTRIBUIÇÃO DE ENERGIA ELÉTRICA",INDEX($Q$33:$Q$36,MATCH($A$10,$O$25:$O$29,0)),INDEX($Q$33:$Q$36,MATCH($A$10,$O$25:$O$29,0)))))) -> 0.0123 | L17: =IF($A$10="CONSTRUÇÕES DE EDÍFICIOS",INDEX($R$33:$R$36,MATCH($A$10,$O$25:$O$29,0)),IF($A$10="CONSTRUÇÃO DE RODOVIAS E FERROVIAS",INDEX($R$33:$R$36,MATCH($A$10,$O$25:$O$29,0)),IF($A$10="CONSTRUÇÃO DE REDES DE ABASTECIMENTO DE ÁGUA, COLETA DE ESGOTO E CONSTRUÇÕES CORRELATAS",INDEX($R$33:$R$36,MATCH($A$10,$O$25:$O$29,0)),IF($A$10="CONSTRUÇÃO E MANUTENÇÃO DE ESTAÇÕES E REDES DE DISTRIBUIÇÃO DE ENERGIA ELÉTRICA",INDEX($R$33:$R$36,MATCH($A$10,$O$25:$O$29,0)),INDEX($R$33:$R$36,MATCH($A$10,$O$25:$O$29,0)))))) -> 0.0139 | O17: CONSTRUÇÃO DE REDES DE ABASTECIMENTO DE ÁGUA, COLETA DE ESGOTO E CONSTRUÇÕES CORRELATAS | P17: 0.2076 | Q17: 0.2418 | R17: 0.2644
A18: 2.1 | B18: ISS | D18: 0.025 | I18: LUCRO | J18: =IF($A$10="CONSTRUÇÕES DE EDÍFICIOS",INDEX($S$33:$S$36,MATCH($A$10,$O$25:$O$29,0)),IF($A$10="CONSTRUÇÃO DE RODOVIAS E FERROVIAS",INDEX($S$33:$S$36,MATCH($A$10,$O$25:$O$29,0)),IF($A$10="CONSTRUÇÃO DE REDES DE ABASTECIMENTO DE ÁGUA, COLETA DE ESGOTO E CONSTRUÇÕES CORRELATAS",INDEX($S$33:$S$36,MATCH($A$10,$O$25:$O$29,0)),IF($A$10="CONSTRUÇÃO E MANUTENÇÃO DE ESTAÇÕES E REDES DE DISTRIBUIÇÃO DE ENERGIA ELÉTRICA",INDEX($S$33:$S$36,MATCH($A$10,$O$25:$O$29,0)),INDEX($S$33:$S$36,MATCH($A$10,$O$25:$O$29,0)))))) -> 0.0616 | K18: =IF($A$10="CONSTRUÇÕES DE EDÍFICIOS",INDEX($T$33:$T$36,MATCH($A$10,$O$25:$O$29,0)),IF($A$10="CONSTRUÇÃO DE RODOVIAS E FERROVIAS",INDEX($T$33:$T$36,MATCH($A$10,$O$25:$O$29,0)),IF($A$10="CONSTRUÇÃO DE REDES DE ABASTECIMENTO DE ÁGUA, COLETA DE ESGOTO E CONSTRUÇÕES CORRELATAS",INDEX($T$33:$T$36,MATCH($A$10,$O$25:$O$29,0)),IF($A$10="CONSTRUÇÃO E MANUTENÇÃO DE ESTAÇÕES E REDES DE DISTRIBUIÇÃO DE ENERGIA ELÉTRICA",INDEX($T$33:$T$36,MATCH($A$10,$O$25:$O$29,0)),INDEX($T$33:$T$36,MATCH($A$10,$O$25:$O$29,0)))))) -> 0.074 | L18: =IF($A$10="CONSTRUÇÕES DE EDÍFICIOS",INDEX($U$33:$U$36,MATCH($A$10,$O$25:$O$29,0)),IF($A$10="CONSTRUÇÃO DE RODOVIAS E FERROVIAS",INDEX($U$33:$U$36,MATCH($A$10,$O$25:$O$29,0)),IF($A$10="CONSTRUÇÃO DE REDES DE ABASTECIMENTO DE ÁGUA, COLETA DE ESGOTO E CONSTRUÇÕES CORRELATAS",INDEX($U$33:$U$36,MATCH($A$10,$O$25:$O$29,0)),IF($A$10="CONSTRUÇÃO E MANUTENÇÃO DE ESTAÇÕES E REDES DE DISTRIBUIÇÃO DE ENERGIA ELÉTRICA",INDEX($U$33:$U$36,MATCH($A$10,$O$25:$O$29,0)),INDEX($U$33:$U$36,MATCH($A$10,$O$25:$O$29,0)))))) -> 0.0896 | O18: CONSTRUÇÃO E MANUTENÇÃO DE ESTAÇÕES E REDES DE DISTRIBUIÇÃO DE ENERGIA ELÉTRICA | P18: 0.24 | Q18: 0.2584 | R18: 0.2786
A19: 2.2 | B19: PIS | D19: 0.0065 | I19: =IF(OR($B$32>$L$19,$B$32<$J$19),"FORA DO INTERVALO","OK") -> OK | J19: =IF($A$10="CONSTRUÇÕES DE EDÍFICIOS",INDEX($P$14:$P$18,MATCH($A$10,$O$25:$O$29,0)),IF($A$10="CONSTRUÇÃO DE RODOVIAS E FERROVIAS",INDEX($P$14:$P$18,MATCH($A$10,$O$25:$O$29,0)),IF($A$10="CONSTRUÇÃO DE REDES DE ABASTECIMENTO DE ÁGUA, COLETA DE ESGOTO E CONSTRUÇÕES CORRELATAS",INDEX($P$14:$P$18,MATCH($A$10,$O$25:$O$29,0)),IF($A$10="CONSTRUÇÃO E MANUTENÇÃO DE ESTAÇÕES E REDES DE DISTRIBUIÇÃO DE ENERGIA ELÉTRICA",INDEX($P$14:$P$18,MATCH($A$10,$O$25:$O$29,0)),INDEX($P$14:$P$18,MATCH($A$10,$O$25:$O$29,0)))))) -> 0.2034 | K19: =IF($A$10="CONSTRUÇÕES DE EDÍFICIOS",INDEX($Q$14:$Q$18,MATCH($A$10,$O$25:$O$29,0)),IF($A$10="CONSTRUÇÃO DE RODOVIAS E FERROVIAS",INDEX($Q$14:$Q$18,MATCH($A$10,$O$25:$O$29,0)),IF($A$10="CONSTRUÇÃO DE REDES DE ABASTECIMENTO DE ÁGUA, COLETA DE ESGOTO E CONSTRUÇÕES CORRELATAS",INDEX($Q$14:$Q$18,MATCH($A$10,$O$25:$O$29,0)),IF($A$10="CONSTRUÇÃO E MANUTENÇÃO DE ESTAÇÕES E REDES DE DISTRIBUIÇÃO DE ENERGIA ELÉTRICA",INDEX($Q$14:$Q$18,MATCH($A$10,$O$25:$O$29,0)),INDEX($Q$14:$Q$18,MATCH($A$10,$O$25:$O$29,0)))))) -> 0.2212 | L19: =IF($A$10="CONSTRUÇÕES DE EDÍFICIOS",INDEX($R$14:$R$18,MATCH($A$10,$O$25:$O$29,0)),IF($A$10="CONSTRUÇÃO DE RODOVIAS E FERROVIAS",INDEX($R$14:$R$18,MATCH($A$10,$O$25:$O$29,0)),IF($A$10="CONSTRUÇÃO DE REDES DE ABASTECIMENTO DE ÁGUA, COLETA DE ESGOTO E CONSTRUÇÕES CORRELATAS",INDEX($R$14:$R$18,MATCH($A$10,$O$25:$O$29,0)),IF($A$10="CONSTRUÇÃO E MANUTENÇÃO DE ESTAÇÕES E REDES DE DISTRIBUIÇÃO DE ENERGIA ELÉTRICA",INDEX($R$14:$R$18,MATCH($A$10,$O$25:$O$29,0)),INDEX($R$14:$R$18,MATCH($A$10,$O$25:$O$29,0)))))) -> 0.25 | O19: OBRAS PORTUÁRIAS, MARÍTIMAS E FLUVIAIS | P19: 0.228 | Q19: 0.2748 | R19: 0.3095
A20: 2.3 | B20: Cofins | D20: 0.03
A22: 3 | B22: SEGUROS, RISCOS E GARANTIAS | D22: =SUM(D23:D24) -> 0.0207 | E22: r = | F22: Seguros, Riscos e Garantias
A23: 3.1 | B23: Seguros e garantias | D23: 0.008
A24: 3.2 | B24: Riscos | D24: 0.0127 | O24: TIPOS DE OBRA | P24: ADMINISTRAÇÃO CENTRAL | S24: SEGURO + GARANTIA | V24: RISCO
P25: 1° QUARTIL | Q25: MÉDIO | R25: 3° QUARTIL | S25: 1° QUARTIL | T25: MÉDIO | U25: 3° QUARTIL | V25: 1° QUARTIL | W25: MÉDIO | X25: 3° QUARTIL
A26: 4 | B26: DESPESAS FINANCEIRAS | D26: 0.0123 | E26: df = | F26: Despesas financeiras | O26: CONSTRUÇÕES DE EDÍFICIOS | P26: 0.03 | Q26: 0.04 | R26: 0.055 | S26: 0.008 | T26: 0.008 | U26: 0.01 | V26: 0.0097 | W26: 0.0127 | X26: 0.0127
O27: CONSTRUÇÃO DE RODOVIAS E FERROVIAS | P27: 0.038 | Q27: 0.0401 | R27: 0.0467 | S27: 0.0032 | T27: 0.004 | U27: 0.0074 | V27: 0.005 | W27: 0.0056 | X27: 0.0097
A28: 5 | B28: LUCRO | D28: 0.074 | E28: l = | F28: Lucro | O28: CONSTRUÇÃO DE REDES DE ABASTECIMENTO DE ÁGUA, COLETA DE ESGOTO E CONSTRUÇÕES CORRELATAS | P28: 0.0343 | Q28: 0.0493 | R28: 0.0671 | S28: 0.0028 | T28: 0.0049 | U28: 0.0075 | V28: 0.01 | W28: 0.0139 | X28: 0.0174
O29: CONSTRUÇÃO E MANUTENÇÃO DE ESTAÇÕES E REDES DE DISTRIBUIÇÃO DE ENERGIA ELÉTRICA | P29: 0.0529 | Q29: 0.0592 | R29: 0.0793 | S29: 0.0025 | T29: 0.0051 | U29: 0.0056 | V29: 0.01 | W29: 0.0148 | X29: 0.0197
O30: OBRAS PORTUÁRIAS, MARÍTIMAS E FLUVIAIS | P30: 0.04 | Q30: 0.0552 | R30: 0.0785 | S30: 0.0081 | T30: 0.0122 | U30: 0.0199 | V30: 0.0146 | W30: 0.0232 | X30: 0.0316
A31: BDI = (((1+a+r)*(1+df)*(1+l))/(1-i))-1
A32: BDI = | B32: =((((1+D15+D22)*(1+D26)*(1+D28))/(1-D17))-1) -> 0.2287734248 | C32: calculado | O32: TIPOS DE OBRA | P32: DESPESAS FINANCEIRAS | S32: LUCRO
A33: BDI = | B33: 0.229 | C33: adotado | P33: 1° QUARTIL | Q33: MÉDIO | R33: 3° QUARTIL | S33: 1° QUARTIL | T33: MÉDIO | U33: 3° QUARTIL
O34: CONSTRUÇÕES DE EDÍFICOS | P34: 0.0059 | Q34: 0.0123 | R34: 0.0139 | S34: 0.0616 | T34: 0.074 | U34: 0.0896
A35: *Fórmula BDI conforme Acórdão 2622/2013 do TCU | O35: CONSTRUÇÃO DE RODOVIAS E FERROVIAS | P35: 0.0102 | Q35: 0.0111 | R35: 0.0121 | S35: 0.0664 | T35: 0.073 | U35: 0.0869
O36: CONSTRUÇÃO DE REDES DE ABASTECIMENTO DE ÁGUA, COLETA DE ESGOTO E CONSTRUÇÕES CORRELATAS | P36: 0.0094 | Q36: 0.0099 | R36: 0.0117 | S36: 0.0674 | T36: 0.0804 | U36: 0.094
O37: CONSTRUÇÃO E MANUTENÇÃO DE ESTAÇÕES E REDES DE DISTRIBUIÇÃO DE ENERGIA ELÉTRICA | P37: 0.0101 | Q37: 0.0107 | R37: 0.0111 | S37: 0.08 | T37: 0.0831 | U37: 0.0951
O38: OBRAS PORTUÁRIAS, MARÍTIMAS E FLUVIAIS | P38: 0.0094 | Q38: 0.0102 | R38: 0.0133 | S38: 0.0714 | T38: 0.084 | U38: 0.1043

Sheet BDI_MAT
A1: =#REF! -> 
A2: =#REF! -> 
A3: =#REF! -> 
A4: DETALHAMENTO DO BDI - MATERIAIS
A5: Local: | B5: =#REF! ->  | F5: BDI Serviços: | G5: =BDI_SERV!B33 -> 0.229
A6: Data: | B6: =#REF! ->  | F6: BDI Materiais: | G6: =B32 -> 0.153
A7: Bases: | B7: =#REF! ->  | F7: Revisão: | G7: =#REF! -> 
A10: ITEM | B10: DESCRIÇÃO DOS SERVIÇOS | D10: %
I12: BDI PARA ITENS DE MERO FORNECIMENTO DE MATERIAIS E EQUIPAMENTOS
A13: 1 | B13: ADMINISTRAÇÃO CENTRAL | D13: 3.45 | E13: a = | F13: Administração Central
I14: DESCRIÇÃO DO SERVIÇOS | J14: 1° QUARTIL | K14: MÉDIO | L14: 3° QUARTIL
A15: 2 | B15: IMPOSTOS E TAXAS | D15: =SUM(D16:D18) -> 3.65 | E15: i = | F15: Impostos | I15: ADMINISTRAÇÃO CENTRAL | J15: 0.015 | K15: 0.0345 | L15: 0.0449
A16: 2.1 | B16: ISS | D16: 0 | I16: SEGUROS E GARANTIAS | J16: 0.003 | K16: 0.0048 | L16: 0.0082
A17: 2.2 | B17: PIS | D17: 0.65 | I17: RISCOS | J17: 0.0056 | K17: 0.0085 | L17: 0.0089
A18: 2.3 | B18: Cofins | D18: 3 | I18: DESPESAS FINANCEIRAS | J18: 0.0085 | K18: 0.0085 | L18: 0.0111
I19: LUCRO | J19: 0.035 | K19: 0.0511 | L19: 0.0622
A20: 3 | B20: SEGUROS, RISCOS E GARANTIAS | D20: =SUM(D21:D22) -> 1.33 | E20: r = | F20: Seguros, Riscos e Garantias | I20: =IF(OR($B$31>$L$20,$B$31<$J$20),"FORA DO INTERVALO","OK") -> OK | J20: 0.111 | K20: 0.1402 | L20: 0.168
A21: 3.1 | B21: Seguros e garantias | D21: 0.48
A22: 3.2 | B22: Riscos | D22: 0.85
A24: 4 | B24: DESPESAS FINANCEIRAS | D24: 0.85 | E24: df = | F24: Despesas financeiras
A26: 5 | B26: LUCRO | D26: 5.11 | E26: l = | F26: Lucro
A30: BDI = (((1+a+r)*(1+df)*(1+l))/(1-i))-1
A31: BDI = | B31: =((((1+D13/100+D20/100)*(1+D24/100)*(1+D26/100))/(1-D15/100))-1) -> 0.1527804794 | C31: calculado
A32: BDI = | B32: 0.153 | C32: adotado
A34: *Fórmula BDI conforme Acórdão 2622/2013 do TCU

Sheet CRONOGRAMA
A1: CRONOGRAMA FÍSISCO-FINANCEIRO
A2: OBRA: NOVO GALPÃO DA 1ª SR- MONTES CLAROS - MG
A3: LOCAL: 1ª SR , MUNICIPIO DE MONTES CLAROS-MG | K3: DATA: NOVEMBRO/2023
A4: VALOR DO CONTRATO: | E4: ='PLANILH ORÇAMENTÁRIA'!I9 -> 903944.92 | H4: PRAZO: 180 DIAS
A5: ITEM | B5: ETAPAS/DESCRIÇAO | C5: FISICO/ FINANCEIRO | D5: TOTAL ETAPAS | E5: MÊS 1 | F5: MÊS 2 | G5: MÊS 3 | H5: MÊS 4 | I5: MÊS 5 | J5: MÊS 6 | K5: MÊS 7 | L5: MÊS 8 | M5: TOTAL
A6: 1 | B6: ='PLANILH ORÇAMENTÁRIA'!D10 -> ITENS DE RATEIO | C6: FÍSICO | D6: 0.1447726151 | E6: 0.0805663912 | F6: 0.1099574607 | G6: 0.1190486657 | H6: 0.2163245587 | I6: 0.1845053413 | J6: 0.2895975824 | M6: 1
C7: FINANCEIRO | D7: 130866.47 | E7: 10543.43922 | F7: 14389.74474 | G7: 15579.47864 | H7: 28309.63137 | I7: 24145.56272 | J7: 37898.61333 | M7: 130866.47
A8: 2 | B8: ='PLANILH ORÇAMENTÁRIA'!D15 -> NOVO GALPÃO | C8: FÍSICO | D8: 0.8552273849 | E8: 0.03348279337 | F8: 0.1059188495 | G8: 0.1178450195 | H8: 0.2240883063 | I8: 0.186590663 | J8: 0.3320743684 | M8: 1
C9: FINANCEIRO | D9: 773078.45 | E9: 25884.826 | F9: 81883.58 | G9: 91103.445 | H9: 173237.8405 | I9: 144249.2205 | J9: 256719.538 | M9: 773078.45
A10: 2.1 | B10: ='PLANILH ORÇAMENTÁRIA'!D16 -> SERVIÇOS PRELIMINARES | C10: FÍSICO | D10: 0.02417586461 | E10: 0.9168580535 | F10: 0.0356322628 | G10: 0.04750968374 | M10: 1
C11: FINANCEIRO | D11: 21853.65 | E11: 20036.695 | F11: 778.695 | G11: 1038.26 | M11: 21853.65
A12: 2.2 | B12: ='PLANILH ORÇAMENTÁRIA'!D25 -> MOVIMENTO DE TERRA | C12: FÍSICO | D12: 0.017882771 | E12: 0.02451927122 | F12: 0.3177147103 | G12: 0.293195439 | H12: 0.2964872342 | I12: 0.06808334529 | J12: 0 | M12: 1
C13: FINANCEIRO | D13: 16165.04 | E13: 396.355 | F13: 5135.871 | G13: 4739.516 | H13: 4792.728 | I13: 1100.57 | J13: 0 | M13: 16165.04
A14: 2.3 | B14: ='PLANILH ORÇAMENTÁRIA'!D32 -> FUNDAÇÕES/ ESTRUTURAS DE CONCRETO ARMADO | C14: FÍSICO | D14: 0.2431886226 | E14: 0.02480006289 | F14: 0.3455821231 | G14: 0.1793031333 | H14: 0.03436082535 | I14: 0.08319077109 | J14: 0.3327630843 | M14: 1
C15: FINANCEIRO | D15: 219829.12 | E15: 5451.776 | F15: 75969.014 | G15: 39416.05 | H15: 7553.51 | I15: 18287.754 | J15: 73151.016 | M15: 219829.12
A16: 2.4 | B16: ='PLANILH ORÇAMENTÁRIA'!D41 -> CONTRUÇÃO CIVIL | C16: FÍSICO | D16: 0.1227010491 | G16: 0.04081634051 | H16: 0.1808663734 | I16: 0.1511066629 | J16: 0.6272106232 | M16: 1
C17: FINANCEIRO | D17: 110914.99 | G17: 4527.144 | H17: 20060.792 | I17: 16759.994 | J17: 69567.06 | M17: 110914.99
A18: 2.5 | B18: ='PLANILH ORÇAMENTÁRIA'!D53 -> COBERTURA | C18: FÍSICO | D18: 0.07235549263 | J18: 1 | M18: 1
C19: FINANCEIRO | D19: 65405.38 | J19: 65405.38 | M19: 65405.38
A20: 2.6 | B20: ='PLANILH ORÇAMENTÁRIA'!D58 -> ESTRUTURAS METÁLICAS | C20: FÍSICO | D20: 0.2295134199 | G20: 0.1725080879 | H20: 0.4809967648 | I20: 0.3464951473 | M20: 1
C21: FINANCEIRO | D21: 207467.49 | G21: 35789.82 | H21: 99791.1915 | I21: 71886.4785 | M21: 207467.49
A22: 2.7 | B22: ='PLANILH ORÇAMENTÁRIA'!D66 -> PINTURAS | C22: FÍSICO | D22: 0.05153413551 | G22: 0.1 | H22: 0.6 | I22: 0.3 | M22: 1
C23: FINANCEIRO | D23: 46584.02 | G23: 4658.402 | H23: 27950.412 | I23: 13975.206 | M23: 46584.02
A24: 2.8 | B24: ='PLANILH ORÇAMENTÁRIA'!D69 -> SERVIÇOS DIVERSOS | C24: FÍSICO | D24: 0.04764407548 | G24: 0.02169270092 | H24: 0.1301562055 | I24: 0.1470425809 | J24: 0.7011085126 | M24: 1
C25: FINANCEIRO | D25: 43067.62 | G25: 934.253 | H25: 5605.518 | I25: 6332.774 | J25: 30195.075 | M25: 43067.62
A26: 2.9 | B26: ='PLANILH ORÇAMENTÁRIA'!D74 -> ASSENTAMENTOS | C26: FÍSICO | D26: 0.007114338338 | I26: 0.5 | J26: 0.5 | M26: 1
C27: FINANCEIRO | D27: 6430.97 | I27: 3215.485 | J27: 3215.485 | M27: 6430.97
A28: 2.10 | B28: ='PLANILH ORÇAMENTÁRIA'!D78 -> INSTALAÇÕES ELÉTRICAS | C28: FÍSICO | D28: 0.01152121083 | I28: 0.5 | J28: 0.5 | M28: 1
C29: FINANCEIRO | D29: 10414.54 | I29: 5207.27 | J29: 5207.27 | M29: 10414.54
A30: 2.11 | B30: ='PLANILH ORÇAMENTÁRIA'!D86 -> MATERIAIS | C30: FÍSICO | D30: 0.02759640488 | H30: 0.3 | I30: 0.3 | J30: 0.4 | M30: 1
C31: FINANCEIRO | D31: 24945.63 | H31: 7483.689 | I31: 7483.689 | J31: 9978.252 | M31: 24945.63
C32: FÍSICO | D32: 1 | E32: 0.04029920896 | F32: 0.1065035298 | G32: 0.1180192745 | H32: 0.2229643283 | I32: 0.1862887655 | J32: 0.325924893
C33: FINANCEIRO | D33: 903944.92 | E33: 36428.26522 | F33: 96273.32474 | G33: 106682.9236 | H33: 201547.4719 | I33: 168394.7832 | J33: 294618.1513
C34: FÍSICO ACUMULADO | E34: 0.04029920896 | F34: 0.1468027388 | G34: 0.2648220133 | H34: 0.4877863415 | I34: 0.674075107 | J34: 1
C35: FINANCEIRO ACUMULADO | E35: 36428.26522 | F35: 132701.59 | G35: 239384.5136 | H35: 440931.9855 | I35: 609326.7687 | J35: 903944.92 | M35: 903944.92
